{"text_format":"1","workbook":"xlsx","n_sheets":3,"sheets":["TABELA","classificação","MAIS PLANILHAS DE EXCEL"],"not_rendered":{"charts":0,"images":1,"macros":1,"external_links":0,"defined_names":23,"comments":0,"pivot_tables":0},"unopened":[],"bounds":{"document_bytes":16777216,"sheet_cells":100000,"rows_first":2000,"rows_last":500,"rows_between":2000,"halvings":0,"cell_chars":16384,"cell_head_chars":4096},"cells_cut":0,"cells_raw":0,"read":"whole","date_system":"1900"}

{"sheet":"TABELA","index":0,"n_rows":597,"n_cols":34,"rows_kept":597,"cut":false,"hidden":false,"merged":[[1,11,1,19],[0,5,1,5],[3,26,3,27],[0,11,0,19],[3,30,3,31],[51,11,54,16],[33,10,33,19],[34,10,34,19],[35,10,35,19],[3,32,3,33],[3,28,3,29],[3,22,3,23],[3,24,3,25],[45,11,49,16]]}
[null,"Brasileirão 2015",null,null,null,2015,null,null,null,null,null,{"$f":"L2","v":"www.tudoexcel.com.br"}]
[null,"Pontos corridos",null,null,null,null,null,null,null,null,null,"www.tudoexcel.com.br"]
["Os Jogos poderão sofrer alterações por decisão da CBF"]
["20 times se enfrentam em 2 turnos - os últimos 4 caem para a segundona",null,null,null,null,null,null,null,null,"C L A S S I F I C A Ç Ã O",null,null,null,null,null,null,null,null,null,null,null,null,"pontos",null,"Jogos",null,"gols",null,"vitoria",null,"empate",null,"derrota"]
["Data","Joga em casa",null,null,null,"Visitante","Local",null,"P","Times","PG","J","V","E","D","GP","GC","SG",null,"Pp","AP%",null,"D.C","VT","D.C","VT","D.C","VT","D.C","VT","D.C","VT","D.C","VT"]
["1 ª Rodada",null,null,null,null,null,null,null,1,"São Paulo",{"$f":"IF($L$1=K6xL6,SUMIF($B$6:$B$597,J6,$W$6:$W$597)+SUMIF($F$6:$F$597,J6,$X$6:$X$597),\"Erro\")","v":16},{"$f":"SUMIF($B$6:$B$597,J6,$Y$6:$Y$597)+SUMIF($F$6:$F$597,J6,$Z$6:$Z$597)","v":7},{"$f":"SUMIF($B$6:$B$597,J6,$AC$6:$AC$597)+SUMIF($F$6:$F$597,J6,$AD$6:$AD$597)","v":5},{"$f":"SUMIF($B$6:$B$597,J6,$AE$6:$AE$597)+SUMIF($F$6:$F$597,J6,$AF$6:$AF$597)","v":1},{"$f":"SUMIF($B$6:$B$597,J6,$AG$6:$AG$597)+SUMIF($F$6:$F$597,J6,$AH$6:$AH$597)","v":1},{"$f":"SUMIF($B$6:$B$597,J6,$AA$6:$AA$597)+SUMIF($F$6:$F$597,J6,$AB$6:$AB$597)","v":11},{"$f":"SUMIF($B$6:$B$597,J6,$AB$6:$AB$597)+SUMIF($F$6:$F$597,J6,$AA$6:$AA$597)","v":4},{"$f":"IF($L$1=K6xL6,SUM(P6-Q6),\"erro\")","v":7},null,{"$f":"(L6*3)-K6","v":5},{"$f":"IF(L6=0,\"\",(K6/(3*L6)))","v":0.76190476190476186},null,{"$f":"IF(C6&E6=\"\",\"\",IF(C6=E6,1,IF(C6>E6,3,IF(C6<E6,0))))","v":""},{"$f":"IF(C6&E6=\"\",\"\",IF(E6=C6,1,IF(C6<E6,3,IF(C6>E6,0))))","v":""},{"$f":"IF(C6&E6=\"\",\"\",IF(C6&E6<>\"\",1))","v":""},{"$f":"IF(C6&E6=\"\",\"\",IF(C6&E6<>\"\",1))","v":""},{"$f":"IF(C6=\"\",\"\",C6)","v":""},{"$f":"IF(E6=\"\",\"\",E6)","v":""},{"$f":"IF(W6=3,1,0)","v":0},{"$f":"IF(X6=3,1,0)","v":0},{"$f":"IF(W6=1,1,0)","v":0},{"$f":"IF(X6=1,1,0)","v":0},{"$f":"IF(W6=0,1,0)","v":0},{"$f":"IF(X6=0,1,0)","v":0}]
["Data/Horário",null,null,null,null,null,"Local",null,2,"Atlético-PR",{"$f":"IF($L$1=K6xL6,SUMIF($B$6:$B$597,J7,$W$6:$W$597)+SUMIF($F$6:$F$597,J7,$X$6:$X$597),\"Erro\")","v":15},{"$f":"SUMIF($B$6:$B$597,J7,$Y$6:$Y$597)+SUMIF($F$6:$F$597,J7,$Z$6:$Z$597)","v":7},{"$f":"SUMIF($B$6:$B$597,J7,$AC$6:$AC$597)+SUMIF($F$6:$F$597,J7,$AD$6:$AD$597)","v":5},{"$f":"SUMIF($B$6:$B$597,J7,$AE$6:$AE$597)+SUMIF($F$6:$F$597,J7,$AF$6:$AF$597)","v":0},{"$f":"SUMIF($B$6:$B$597,J7,$AG$6:$AG$597)+SUMIF($F$6:$F$597,J7,$AH$6:$AH$597)","v":2},{"$f":"SUMIF($B$6:$B$597,J7,$AA$6:$AA$597)+SUMIF($F$6:$F$597,J7,$AB$6:$AB$597)","v":10},{"$f":"SUMIF($B$6:$B$597,J7,$AB$6:$AB$597)+SUMIF($F$6:$F$597,J7,$AA$6:$AA$597)","v":5},{"$f":"IF($L$1=K6xL6,SUM(P7-Q7),\"erro\")","v":5},null,6,{"$f":"IF(L7=0,\"\",(K7/(3*L7)))","v":0.7142857142857143},null,"","","","","","",{"$f":"IF(W7=3,1,0)","v":0},{"$f":"IF(X7=3,1,0)","v":0},{"$f":"IF(W7=1,1,0)","v":0},{"$f":"IF(X7=1,1,0)","v":0},{"$f":"IF(W7=0,1,0)","v":0},{"$f":"IF(X7=0,1,0)","v":0}]
["2015-05-09T18:30:00","Palmeiras",2,"x",2,"Atlético-MG","São Paulo",null,3,"Sport",{"$f":"IF($L$1=K6xL6,SUMIF($B$6:$B$597,J8,$W$6:$W$597)+SUMIF($F$6:$F$597,J8,$X$6:$X$597),\"Erro\")","v":15},{"$f":"SUMIF($B$6:$B$597,J8,$Y$6:$Y$597)+SUMIF($F$6:$F$597,J8,$Z$6:$Z$597)","v":7},{"$f":"SUMIF($B$6:$B$597,J8,$AC$6:$AC$597)+SUMIF($F$6:$F$597,J8,$AD$6:$AD$597)","v":4},{"$f":"SUMIF($B$6:$B$597,J8,$AE$6:$AE$597)+SUMIF($F$6:$F$597,J8,$AF$6:$AF$597)","v":3},{"$f":"SUMIF($B$6:$B$597,J8,$AG$6:$AG$597)+SUMIF($F$6:$F$597,J8,$AH$6:$AH$597)","v":0},{"$f":"SUMIF($B$6:$B$597,J8,$AA$6:$AA$597)+SUMIF($F$6:$F$597,J8,$AB$6:$AB$597)","v":12},{"$f":"SUMIF($B$6:$B$597,J8,$AB$6:$AB$597)+SUMIF($F$6:$F$597,J8,$AA$6:$AA$597)","v":6},{"$f":"IF($L$1=K6xL6,SUM(P8-Q8),\"erro\")","v":6},null,6,0.7142857142857143,null,1,1,1,1,2,2,0,0,1,1,0,0]
["2015-05-09T18:30:00","Chapecoense",2,"x",1,"Coritiba","Chapecó",null,4,"Corinthians",{"$f":"IF($L$1=K6xL6,SUMIF($B$6:$B$597,J9,$W$6:$W$597)+SUMIF($F$6:$F$597,J9,$X$6:$X$597),\"Erro\")","v":13},{"$f":"SUMIF($B$6:$B$597,J9,$Y$6:$Y$597)+SUMIF($F$6:$F$597,J9,$Z$6:$Z$597)","v":7},{"$f":"SUMIF($B$6:$B$597,J9,$AC$6:$AC$597)+SUMIF($F$6:$F$597,J9,$AD$6:$AD$597)","v":4},{"$f":"SUMIF($B$6:$B$597,J9,$AE$6:$AE$597)+SUMIF($F$6:$F$597,J9,$AF$6:$AF$597)","v":1},{"$f":"SUMIF($B$6:$B$597,J9,$AG$6:$AG$597)+SUMIF($F$6:$F$597,J9,$AH$6:$AH$597)","v":2},{"$f":"SUMIF($B$6:$B$597,J9,$AA$6:$AA$597)+SUMIF($F$6:$F$597,J9,$AB$6:$AB$597)","v":6},{"$f":"SUMIF($B$6:$B$597,J9,$AB$6:$AB$597)+SUMIF($F$6:$F$597,J9,$AA$6:$AA$597)","v":6},{"$f":"IF($L$1=K6xL6,SUM(P9-Q9),\"erro\")","v":0},null,8,0.61904761904761907,null,3,0,1,1,2,1,1,0,0,0,0,1]
["2015-05-09T21:00:00","Fluminense",1,"x",0,"Joinville","Rio de Janeiro",null,5,"Ponte Preta",{"$f":"IF($L$1=K6xL6,SUMIF($B$6:$B$597,J10,$W$6:$W$597)+SUMIF($F$6:$F$597,J10,$X$6:$X$597),\"Erro\")","v":13},{"$f":"SUMIF($B$6:$B$597,J10,$Y$6:$Y$597)+SUMIF($F$6:$F$597,J10,$Z$6:$Z$597)","v":7},{"$f":"SUMIF($B$6:$B$597,J10,$AC$6:$AC$597)+SUMIF($F$6:$F$597,J10,$AD$6:$AD$597)","v":3},{"$f":"SUMIF($B$6:$B$597,J10,$AE$6:$AE$597)+SUMIF($F$6:$F$597,J10,$AF$6:$AF$597)","v":4},{"$f":"SUMIF($B$6:$B$597,J10,$AG$6:$AG$597)+SUMIF($F$6:$F$597,J10,$AH$6:$AH$597)","v":0},{"$f":"SUMIF($B$6:$B$597,J10,$AA$6:$AA$597)+SUMIF($F$6:$F$597,J10,$AB$6:$AB$597)","v":13},{"$f":"SUMIF($B$6:$B$597,J10,$AB$6:$AB$597)+SUMIF($F$6:$F$597,J10,$AA$6:$AA$597)","v":7},{"$f":"IF($L$1=K6xL6,SUM(P10-Q10),\"erro\")","v":6},null,8,0.61904761904761907,null,3,0,1,1,1,0,1,0,0,0,0,1]
["2015-05-10T11:00:00","Grêmio",3,"x",3,"Ponte Preta","Porto Alegre",null,6,"Atlético-MG",{"$f":"IF($L$1=K6xL6,SUMIF($B$6:$B$597,J11,$W$6:$W$597)+SUMIF($F$6:$F$597,J11,$X$6:$X$597),\"Erro\")","v":11},{"$f":"SUMIF($B$6:$B$597,J11,$Y$6:$Y$597)+SUMIF($F$6:$F$597,J11,$Z$6:$Z$597)","v":7},{"$f":"SUMIF($B$6:$B$597,J11,$AC$6:$AC$597)+SUMIF($F$6:$F$597,J11,$AD$6:$AD$597)","v":3},{"$f":"SUMIF($B$6:$B$597,J11,$AE$6:$AE$597)+SUMIF($F$6:$F$597,J11,$AF$6:$AF$597)","v":2},{"$f":"SUMIF($B$6:$B$597,J11,$AG$6:$AG$597)+SUMIF($F$6:$F$597,J11,$AH$6:$AH$597)","v":2},{"$f":"SUMIF($B$6:$B$597,J11,$AA$6:$AA$597)+SUMIF($F$6:$F$597,J11,$AB$6:$AB$597)","v":16},{"$f":"SUMIF($B$6:$B$597,J11,$AB$6:$AB$597)+SUMIF($F$6:$F$597,J11,$AA$6:$AA$597)","v":10},{"$f":"IF($L$1=K6xL6,SUM(P11-Q11),\"erro\")","v":6},null,10,0.52380952380952384,null,1,1,1,1,3,3,0,0,1,1,0,0]
["2015-05-10T16:00:00","Cruzeiro",0,"x",1,"Corinthians","Cuiabá",null,7,"Grêmio",{"$f":"IF($L$1=K6xL6,SUMIF($B$6:$B$597,J12,$W$6:$W$597)+SUMIF($F$6:$F$597,J12,$X$6:$X$597),\"Erro\")","v":11},{"$f":"SUMIF($B$6:$B$597,J12,$Y$6:$Y$597)+SUMIF($F$6:$F$597,J12,$Z$6:$Z$597)","v":7},{"$f":"SUMIF($B$6:$B$597,J12,$AC$6:$AC$597)+SUMIF($F$6:$F$597,J12,$AD$6:$AD$597)","v":3},{"$f":"SUMIF($B$6:$B$597,J12,$AE$6:$AE$597)+SUMIF($F$6:$F$597,J12,$AF$6:$AF$597)","v":2},{"$f":"SUMIF($B$6:$B$597,J12,$AG$6:$AG$597)+SUMIF($F$6:$F$597,J12,$AH$6:$AH$597)","v":2},{"$f":"SUMIF($B$6:$B$597,J12,$AA$6:$AA$597)+SUMIF($F$6:$F$597,J12,$AB$6:$AB$597)","v":10},{"$f":"SUMIF($B$6:$B$597,J12,$AB$6:$AB$597)+SUMIF($F$6:$F$597,J12,$AA$6:$AA$597)","v":10},{"$f":"IF($L$1=K6xL6,SUM(P12-Q12),\"erro\")","v":0},null,10,0.52380952380952384,null,0,3,1,1,0,1,0,1,0,0,1,0]
["2015-05-10T16:00:00","Atlético-PR",3,"x",0,"Internacional","Curitiba",null,8,"Fluminense",{"$f":"IF($L$1=K6xL6,SUMIF($B$6:$B$597,J13,$W$6:$W$597)+SUMIF($F$6:$F$597,J13,$X$6:$X$597),\"Erro\")","v":11},{"$f":"SUMIF($B$6:$B$597,J13,$Y$6:$Y$597)+SUMIF($F$6:$F$597,J13,$Z$6:$Z$597)","v":7},{"$f":"SUMIF($B$6:$B$597,J13,$AC$6:$AC$597)+SUMIF($F$6:$F$597,J13,$AD$6:$AD$597)","v":3},{"$f":"SUMIF($B$6:$B$597,J13,$AE$6:$AE$597)+SUMIF($F$6:$F$597,J13,$AF$6:$AF$597)","v":2},{"$f":"SUMIF($B$6:$B$597,J13,$AG$6:$AG$597)+SUMIF($F$6:$F$597,J13,$AH$6:$AH$597)","v":2},{"$f":"SUMIF($B$6:$B$597,J13,$AA$6:$AA$597)+SUMIF($F$6:$F$597,J13,$AB$6:$AB$597)","v":8},{"$f":"SUMIF($B$6:$B$597,J13,$AB$6:$AB$597)+SUMIF($F$6:$F$597,J13,$AA$6:$AA$597)","v":8},{"$f":"IF($L$1=K6xL6,SUM(P13-Q13),\"erro\")","v":0},null,10,0.52380952380952384,null,3,0,1,1,3,0,1,0,0,0,0,1]
["2015-05-10T16:00:00","Sport",4,"x",1,"Figueirense","Recife",null,9,"Avaí",{"$f":"IF($L$1=K6xL6,SUMIF($B$6:$B$597,J14,$W$6:$W$597)+SUMIF($F$6:$F$597,J14,$X$6:$X$597),\"Erro\")","v":11},{"$f":"SUMIF($B$6:$B$597,J14,$Y$6:$Y$597)+SUMIF($F$6:$F$597,J14,$Z$6:$Z$597)","v":7},{"$f":"SUMIF($B$6:$B$597,J14,$AC$6:$AC$597)+SUMIF($F$6:$F$597,J14,$AD$6:$AD$597)","v":3},{"$f":"SUMIF($B$6:$B$597,J14,$AE$6:$AE$597)+SUMIF($F$6:$F$597,J14,$AF$6:$AF$597)","v":2},{"$f":"SUMIF($B$6:$B$597,J14,$AG$6:$AG$597)+SUMIF($F$6:$F$597,J14,$AH$6:$AH$597)","v":2},{"$f":"SUMIF($B$6:$B$597,J14,$AA$6:$AA$597)+SUMIF($F$6:$F$597,J14,$AB$6:$AB$597)","v":8},{"$f":"SUMIF($B$6:$B$597,J14,$AB$6:$AB$597)+SUMIF($F$6:$F$597,J14,$AA$6:$AA$597)","v":9},{"$f":"IF($L$1=K6xL6,SUM(P14-Q14),\"erro\")","v":-1},null,10,0.52380952380952384,null,3,0,1,1,4,1,1,0,0,0,0,1]
["2015-05-10T16:00:00","São Paulo",2,"x",1,"Flamengo","São Paulo",null,10,"Cruzeiro",{"$f":"IF($L$1=K6xL6,SUMIF($B$6:$B$597,J15,$W$6:$W$597)+SUMIF($F$6:$F$597,J15,$X$6:$X$597),\"Erro\")","v":10},{"$f":"SUMIF($B$6:$B$597,J15,$Y$6:$Y$597)+SUMIF($F$6:$F$597,J15,$Z$6:$Z$597)","v":7},{"$f":"SUMIF($B$6:$B$597,J15,$AC$6:$AC$597)+SUMIF($F$6:$F$597,J15,$AD$6:$AD$597)","v":3},{"$f":"SUMIF($B$6:$B$597,J15,$AE$6:$AE$597)+SUMIF($F$6:$F$597,J15,$AF$6:$AF$597)","v":1},{"$f":"SUMIF($B$6:$B$597,J15,$AG$6:$AG$597)+SUMIF($F$6:$F$597,J15,$AH$6:$AH$597)","v":3},{"$f":"SUMIF($B$6:$B$597,J15,$AA$6:$AA$597)+SUMIF($F$6:$F$597,J15,$AB$6:$AB$597)","v":9},{"$f":"SUMIF($B$6:$B$597,J15,$AB$6:$AB$597)+SUMIF($F$6:$F$597,J15,$AA$6:$AA$597)","v":7},{"$f":"IF($L$1=K6xL6,SUM(P15-Q15),\"erro\")","v":2},null,11,0.47619047619047616,null,3,0,1,1,2,1,1,0,0,0,0,1]
["2015-05-10T18:30:00","Vasco",0,"x",0,"Goiás","Rio de Janeiro",null,11,"Chapecoense",{"$f":"IF($L$1=K6xL6,SUMIF($B$6:$B$597,J16,$W$6:$W$597)+SUMIF($F$6:$F$597,J16,$X$6:$X$597),\"Erro\")","v":9},{"$f":"SUMIF($B$6:$B$597,J16,$Y$6:$Y$597)+SUMIF($F$6:$F$597,J16,$Z$6:$Z$597)","v":7},{"$f":"SUMIF($B$6:$B$597,J16,$AC$6:$AC$597)+SUMIF($F$6:$F$597,J16,$AD$6:$AD$597)","v":3},{"$f":"SUMIF($B$6:$B$597,J16,$AE$6:$AE$597)+SUMIF($F$6:$F$597,J16,$AF$6:$AF$597)","v":0},{"$f":"SUMIF($B$6:$B$597,J16,$AG$6:$AG$597)+SUMIF($F$6:$F$597,J16,$AH$6:$AH$597)","v":4},{"$f":"SUMIF($B$6:$B$597,J16,$AA$6:$AA$597)+SUMIF($F$6:$F$597,J16,$AB$6:$AB$597)","v":6},{"$f":"SUMIF($B$6:$B$597,J16,$AB$6:$AB$597)+SUMIF($F$6:$F$597,J16,$AA$6:$AA$597)","v":7},{"$f":"IF($L$1=K6xL6,SUM(P16-Q16),\"erro\")","v":-1},null,12,{"$f":"IF(L16=0,\"\",(K16/(3*L16)))","v":0.42857142857142855},null,1,1,1,1,0,0,0,0,1,1,0,0]
["2015-05-10T18:30:00","Avaí",1,"x",1,"Santos","Florianópolis",null,12,"Palmeiras",{"$f":"IF($L$1=K6xL6,SUMIF($B$6:$B$597,J17,$W$6:$W$597)+SUMIF($F$6:$F$597,J17,$X$6:$X$597),\"Erro\")","v":9},{"$f":"SUMIF($B$6:$B$597,J17,$Y$6:$Y$597)+SUMIF($F$6:$F$597,J17,$Z$6:$Z$597)","v":7},{"$f":"SUMIF($B$6:$B$597,J17,$AC$6:$AC$597)+SUMIF($F$6:$F$597,J17,$AD$6:$AD$597)","v":2},{"$f":"SUMIF($B$6:$B$597,J17,$AE$6:$AE$597)+SUMIF($F$6:$F$597,J17,$AF$6:$AF$597)","v":3},{"$f":"SUMIF($B$6:$B$597,J17,$AG$6:$AG$597)+SUMIF($F$6:$F$597,J17,$AH$6:$AH$597)","v":2},{"$f":"SUMIF($B$6:$B$597,J17,$AA$6:$AA$597)+SUMIF($F$6:$F$597,J17,$AB$6:$AB$597)","v":8},{"$f":"SUMIF($B$6:$B$597,J17,$AB$6:$AB$597)+SUMIF($F$6:$F$597,J17,$AA$6:$AA$597)","v":7},{"$f":"IF($L$1=K6xL6,SUM(P17-Q17),\"erro\")","v":1},null,12,0.42857142857142855,null,1,1,1,1,1,1,0,0,1,1,0,0]
["2 ª Rodada",null,null,null,null,null,null,null,13,"Goiás",{"$f":"IF($L$1=K6xL6,SUMIF($B$6:$B$597,J18,$W$6:$W$597)+SUMIF($F$6:$F$597,J18,$X$6:$X$597),\"Erro\")","v":9},{"$f":"SUMIF($B$6:$B$597,J18,$Y$6:$Y$597)+SUMIF($F$6:$F$597,J18,$Z$6:$Z$597)","v":7},{"$f":"SUMIF($B$6:$B$597,J18,$AC$6:$AC$597)+SUMIF($F$6:$F$597,J18,$AD$6:$AD$597)","v":2},{"$f":"SUMIF($B$6:$B$597,J18,$AE$6:$AE$597)+SUMIF($F$6:$F$597,J18,$AF$6:$AF$597)","v":3},{"$f":"SUMIF($B$6:$B$597,J18,$AG$6:$AG$597)+SUMIF($F$6:$F$597,J18,$AH$6:$AH$597)","v":2},{"$f":"SUMIF($B$6:$B$597,J18,$AA$6:$AA$597)+SUMIF($F$6:$F$597,J18,$AB$6:$AB$597)","v":4},{"$f":"SUMIF($B$6:$B$597,J18,$AB$6:$AB$597)+SUMIF($F$6:$F$597,J18,$AA$6:$AA$597)","v":3},{"$f":"IF($L$1=K6xL6,SUM(P18-Q18),\"erro\")","v":1},null,12,0.42857142857142855,null,"","","","","","",0,0,0,0,0,0]
["Data/Horário",null,null,null,null,null,"Local",null,14,"Internacional",{"$f":"IF($L$1=K6xL6,SUMIF($B$6:$B$597,J19,$W$6:$W$597)+SUMIF($F$6:$F$597,J19,$X$6:$X$597),\"Erro\")","v":9},{"$f":"SUMIF($B$6:$B$597,J19,$Y$6:$Y$597)+SUMIF($F$6:$F$597,J19,$Z$6:$Z$597)","v":7},{"$f":"SUMIF($B$6:$B$597,J19,$AC$6:$AC$597)+SUMIF($F$6:$F$597,J19,$AD$6:$AD$597)","v":2},{"$f":"SUMIF($B$6:$B$597,J19,$AE$6:$AE$597)+SUMIF($F$6:$F$597,J19,$AF$6:$AF$597)","v":3},{"$f":"SUMIF($B$6:$B$597,J19,$AG$6:$AG$597)+SUMIF($F$6:$F$597,J19,$AH$6:$AH$597)","v":2},{"$f":"SUMIF($B$6:$B$597,J19,$AA$6:$AA$597)+SUMIF($F$6:$F$597,J19,$AB$6:$AB$597)","v":6},{"$f":"SUMIF($B$6:$B$597,J19,$AB$6:$AB$597)+SUMIF($F$6:$F$597,J19,$AA$6:$AA$597)","v":7},{"$f":"IF($L$1=K6xL6,SUM(P19-Q19),\"erro\")","v":-1},null,12,0.42857142857142855,null,"","","","","","",0,0,0,0,0,0]
["2015-05-16T18:30:00","Coritiba",2,"x",0,"Grêmio","Couto Pereira",null,15,"Figueirense",{"$f":"IF($L$1=K6xL6,SUMIF($B$6:$B$597,J20,$W$6:$W$597)+SUMIF($F$6:$F$597,J20,$X$6:$X$597),\"Erro\")","v":8},{"$f":"SUMIF($B$6:$B$597,J20,$Y$6:$Y$597)+SUMIF($F$6:$F$597,J20,$Z$6:$Z$597)","v":7},{"$f":"SUMIF($B$6:$B$597,J20,$AC$6:$AC$597)+SUMIF($F$6:$F$597,J20,$AD$6:$AD$597)","v":2},{"$f":"SUMIF($B$6:$B$597,J20,$AE$6:$AE$597)+SUMIF($F$6:$F$597,J20,$AF$6:$AF$597)","v":2},{"$f":"SUMIF($B$6:$B$597,J20,$AG$6:$AG$597)+SUMIF($F$6:$F$597,J20,$AH$6:$AH$597)","v":3},{"$f":"SUMIF($B$6:$B$597,J20,$AA$6:$AA$597)+SUMIF($F$6:$F$597,J20,$AB$6:$AB$597)","v":6},{"$f":"SUMIF($B$6:$B$597,J20,$AB$6:$AB$597)+SUMIF($F$6:$F$597,J20,$AA$6:$AA$597)","v":9},{"$f":"IF($L$1=K6xL6,SUM(P20-Q20),\"erro\")","v":-3},null,13,0.38095238095238093,null,3,0,1,1,2,0,1,0,0,0,0,1]
["2015-05-16T18:30:00","Goiás",2,"x",0,"Atlético-PR","Serra Dourada",null,16,"Flamengo",{"$f":"IF($L$1=K6xL6,SUMIF($B$6:$B$597,J21,$W$6:$W$597)+SUMIF($F$6:$F$597,J21,$X$6:$X$597),\"Erro\")","v":7},{"$f":"SUMIF($B$6:$B$597,J21,$Y$6:$Y$597)+SUMIF($F$6:$F$597,J21,$Z$6:$Z$597)","v":7},{"$f":"SUMIF($B$6:$B$597,J21,$AC$6:$AC$597)+SUMIF($F$6:$F$597,J21,$AD$6:$AD$597)","v":2},{"$f":"SUMIF($B$6:$B$597,J21,$AE$6:$AE$597)+SUMIF($F$6:$F$597,J21,$AF$6:$AF$597)","v":1},{"$f":"SUMIF($B$6:$B$597,J21,$AG$6:$AG$597)+SUMIF($F$6:$F$597,J21,$AH$6:$AH$597)","v":4},{"$f":"SUMIF($B$6:$B$597,J21,$AA$6:$AA$597)+SUMIF($F$6:$F$597,J21,$AB$6:$AB$597)","v":8},{"$f":"SUMIF($B$6:$B$597,J21,$AB$6:$AB$597)+SUMIF($F$6:$F$597,J21,$AA$6:$AA$597)","v":10},{"$f":"IF($L$1=K6xL6,SUM(P21-Q21),\"erro\")","v":-2},null,14,0.33333333333333331,null,3,0,1,1,2,0,1,0,0,0,0,1]
["2015-05-16T21:00:00","Corinthians",1,"x",0,"Chapecoense","Arenta Itaq.",null,17,"Santos",{"$f":"IF($L$1=K6xL6,SUMIF($B$6:$B$597,J22,$W$6:$W$597)+SUMIF($F$6:$F$597,J22,$X$6:$X$597),\"Erro\")","v":7},{"$f":"SUMIF($B$6:$B$597,J22,$Y$6:$Y$597)+SUMIF($F$6:$F$597,J22,$Z$6:$Z$597)","v":7},{"$f":"SUMIF($B$6:$B$597,J22,$AC$6:$AC$597)+SUMIF($F$6:$F$597,J22,$AD$6:$AD$597)","v":1},{"$f":"SUMIF($B$6:$B$597,J22,$AE$6:$AE$597)+SUMIF($F$6:$F$597,J22,$AF$6:$AF$597)","v":4},{"$f":"SUMIF($B$6:$B$597,J22,$AG$6:$AG$597)+SUMIF($F$6:$F$597,J22,$AH$6:$AH$597)","v":2},{"$f":"SUMIF($B$6:$B$597,J22,$AA$6:$AA$597)+SUMIF($F$6:$F$597,J22,$AB$6:$AB$597)","v":10},{"$f":"SUMIF($B$6:$B$597,J22,$AB$6:$AB$597)+SUMIF($F$6:$F$597,J22,$AA$6:$AA$597)","v":11},{"$f":"IF($L$1=K6xL6,SUM(P22-Q22),\"erro\")","v":-1},null,14,{"$f":"IF(L22=0,\"\",(K22/(3*L22)))","v":0.33333333333333331},null,3,0,1,1,1,0,1,0,0,0,0,1]
["2015-05-17T11:00:00","Figueirense",0,"x",0,"Vasco","Orlando Sca",null,18,"Coritiba",{"$f":"IF($L$1=K6xL6,SUMIF($B$6:$B$597,J23,$W$6:$W$597)+SUMIF($F$6:$F$597,J23,$X$6:$X$597),\"Erro\")","v":3},{"$f":"SUMIF($B$6:$B$597,J23,$Y$6:$Y$597)+SUMIF($F$6:$F$597,J23,$Z$6:$Z$597)","v":7},{"$f":"SUMIF($B$6:$B$597,J23,$AC$6:$AC$597)+SUMIF($F$6:$F$597,J23,$AD$6:$AD$597)","v":1},{"$f":"SUMIF($B$6:$B$597,J23,$AE$6:$AE$597)+SUMIF($F$6:$F$597,J23,$AF$6:$AF$597)","v":0},{"$f":"SUMIF($B$6:$B$597,J23,$AG$6:$AG$597)+SUMIF($F$6:$F$597,J23,$AH$6:$AH$597)","v":6},{"$f":"SUMIF($B$6:$B$597,J23,$AA$6:$AA$597)+SUMIF($F$6:$F$597,J23,$AB$6:$AB$597)","v":4},{"$f":"SUMIF($B$6:$B$597,J23,$AB$6:$AB$597)+SUMIF($F$6:$F$597,J23,$AA$6:$AA$597)","v":10},{"$f":"IF($L$1=K6xL6,SUM(P23-Q23),\"erro\")","v":-6},null,18,0.14285714285714285,null,1,1,1,1,0,0,0,0,1,1,0,0]
["2015-05-17T16:00:00","Santos",1,"x",0,"Cruzeiro","Vila Belmiro",null,19,"Vasco",{"$f":"IF($L$1=K6xL6,SUMIF($B$6:$B$597,J24,$W$6:$W$597)+SUMIF($F$6:$F$597,J24,$X$6:$X$597),\"Erro\")","v":3},{"$f":"SUMIF($B$6:$B$597,J24,$Y$6:$Y$597)+SUMIF($F$6:$F$597,J24,$Z$6:$Z$597)","v":7},{"$f":"SUMIF($B$6:$B$597,J24,$AC$6:$AC$597)+SUMIF($F$6:$F$597,J24,$AD$6:$AD$597)","v":0},{"$f":"SUMIF($B$6:$B$597,J24,$AE$6:$AE$597)+SUMIF($F$6:$F$597,J24,$AF$6:$AF$597)","v":3},{"$f":"SUMIF($B$6:$B$597,J24,$AG$6:$AG$597)+SUMIF($F$6:$F$597,J24,$AH$6:$AH$597)","v":4},{"$f":"SUMIF($B$6:$B$597,J24,$AA$6:$AA$597)+SUMIF($F$6:$F$597,J24,$AB$6:$AB$597)","v":2},{"$f":"SUMIF($B$6:$B$597,J24,$AB$6:$AB$597)+SUMIF($F$6:$F$597,J24,$AA$6:$AA$597)","v":12},{"$f":"IF($L$1=K6xL6,SUM(P24-Q24),\"erro\")","v":-10},null,18,0.14285714285714285,null,3,0,1,1,1,0,1,0,0,0,0,1]
["2015-05-17T16:00:00","Flamengo",2,"x",2,"Sport","Maracanã",null,20,"Joinville",{"$f":"IF($L$1=K6xL6,SUMIF($B$6:$B$597,J25,$W$6:$W$597)+SUMIF($F$6:$F$597,J25,$X$6:$X$597),\"Erro\")","v":1},{"$f":"SUMIF($B$6:$B$597,J25,$Y$6:$Y$597)+SUMIF($F$6:$F$597,J25,$Z$6:$Z$597)","v":7},{"$f":"SUMIF($B$6:$B$597,J25,$AC$6:$AC$597)+SUMIF($F$6:$F$597,J25,$AD$6:$AD$597)","v":0},{"$f":"SUMIF($B$6:$B$597,J25,$AE$6:$AE$597)+SUMIF($F$6:$F$597,J25,$AF$6:$AF$597)","v":1},{"$f":"SUMIF($B$6:$B$597,J25,$AG$6:$AG$597)+SUMIF($F$6:$F$597,J25,$AH$6:$AH$597)","v":6},{"$f":"SUMIF($B$6:$B$597,J25,$AA$6:$AA$597)+SUMIF($F$6:$F$597,J25,$AB$6:$AB$597)","v":2},{"$f":"SUMIF($B$6:$B$597,J25,$AB$6:$AB$597)+SUMIF($F$6:$F$597,J25,$AA$6:$AA$597)","v":11},{"$f":"IF($L$1=K6xL6,SUM(P25-Q25),\"erro\")","v":-9},null,20,4.7619047619047616E-2,null,1,1,1,1,2,2,0,0,1,1,0,0]
["2015-05-17T16:00:00","Atlético-MG",4,"x",1,"Fluminense","Mané Garrincha",null,null,null,null,null,null,null,null,null,null,null,null,null,null,null,3,0,1,1,4,1,1,0,0,0,0,1]
["2015-05-17T18:30:00","Ponte Preta",1,"x",0,"São Paulo","Moisés Luc",null,null,"Funciona apenas em Excel com Windows.",null,null,null,null,null,null,null,null,null,null,null,null,3,0,1,1,1,0,1,0,0,0,0,1]
["2015-05-17T18:30:00","Internacional",1,"x",0,"Avaí","Beira Rio",null,null,null,null,null,null,null,null,null,null,null,null,null,"",null,3,0,1,1,1,0,1,0,0,0,0,1]
["2015-05-17T18:30:00","Joinville",0,"x",0,"Palmeiras","Arena Joinville",null,null,"OBS","Se a Macro Atualizar não funcionar",null,null,null,null,null,null,null,null,null,"",null,1,1,1,1,0,0,0,0,1,1,0,0]
["3 ª Rodada",null,null,null,null,null,null,null,null,null,"Habilite-a para poder atualizar a tabela",null,null,null,null,null,null,null,null,null,null,null,"","","","","","",0,0,0,0,0,0]
["Data/Horário",null,null,null,null,null,"Local",null,null,null,null,null,null,null,null,null,null,null,null,null,null,null,"","","","","","",0,0,0,0,0,0]
["2015-05-23T18:30:00","São Paulo",3,"x",0,"Joinville","Morumbi",null,null,null,"Recomendamos Excel 2007 acima",null,null,null,null,null,null,null,null,null,null,null,3,0,1,1,3,0,1,0,0,0,0,1]
["2015-05-23T18:30:00","Vasco",1,"x",1,"Internacional","São Januário",null,null,null,null,null,null,null,null,null,null,null,null,null,null,null,1,1,1,1,1,1,0,0,1,1,0,0]
["2015-05-23T21:00:00","Grêmio",1,"x",0,"Figueirense","Arena Grêmio",null,null,null,"A CBF está sempre mudando os Jogos",null,null,null,null,null,null,null,null,null,null,null,3,0,1,1,1,0,1,0,0,0,0,1]
["2015-05-24T11:00:00","Palmeiras",0,"x",1,"Goiás","Arena Palmeiras",null,null,null,"Por isso não preenchemos a tabela",null,null,null,null,null,null,null,null,null,null,null,0,3,1,1,0,1,0,1,0,0,1,0]
["2015-05-24T16:00:00","Fluminense",0,"x",0,"Corinthians","Maracanã",null,null,null,"Vá preenchendo de acordo com os jogos",null,null,null,null,null,null,null,null,null,null,null,1,1,1,1,0,0,0,0,1,1,0,0]
["2015-05-24T16:00:00","Avaí",2,"x",1,"Flamengo","Ressacada",null,null,null,null,null,null,null,null,null,null,null,null,null,null,null,3,0,1,1,2,1,1,0,0,0,0,1]
["2015-05-24T16:00:00","Atlético-PR",1,"x",0,"Atlético-MG","Arena da Baixada",null,null,null,null,null,null,null,null,null,null,null,null,null,null,null,3,0,1,1,1,0,1,0,0,0,0,1]
["2015-05-24T16:00:00","Chapecoense",1,"x",0,"Santos","Arena Condá",null,null,null,null,null,null,null,null,null,null,null,null,null,null,null,3,0,1,1,1,0,1,0,0,0,0,1]
["2015-05-24T18:30:00","Cruzeiro",1,"x",1,"Ponte Preta","Mineirão",null,null,null,null,null,null,null,null,null,null,null,null,null,null,null,1,1,1,1,1,1,0,0,1,1,0,0]
["2015-05-24T18:30:00","Sport",1,"x",0,"Coritiba","Ilha do Retiro",null,null,null,null,null,null,null,null,null,null,null,null,null,null,null,3,0,1,1,1,0,1,0,0,0,0,1]
["4 ª Rodada",null,null,null,null,null,null,null,null,null,null,null,null,null,null,null,null,null,null,null,null,null,"","","","","","",0,0,0,0,0,0]
["Data/Horário",null,null,null,null,null,"Local",null,null,null,null,null,null,null,null,null,null,null,null,null,null,null,"","","","","","",0,0,0,0,0,0]
["2015-05-30T18:30:00","Ponte Preta",3,"x",1,"Chapecoense","Moisés Lucarelli",null,null,null,null,null,null,null,null,null,null,null,null,null,null,null,3,0,1,1,3,1,1,0,0,0,0,1]
["2015-05-30T18:30:00","Coritiba",1,"x",2,"Avaí","Couto Pereira",null,null,null,null,null,null,null,null,null,null,null,null,null,null,null,0,3,1,1,1,2,0,1,0,0,1,0]
["2015-05-30T21:00:00","Joinville",1,"x",2,"Atlético-PR","Arena Joinville",null,null,null,null,"VER MAIS PLANILHAS",null,null,null,null,null,null,null,null,null,null,0,3,1,1,1,2,0,1,0,0,1,0]
["2015-05-31T11:00:00","Santos",2,"x",2,"Sport","Vila Belmiro",null,null,null,null,null,null,null,null,null,null,null,null,null,null,null,1,1,1,1,2,2,0,0,1,1,0,0]
["2015-05-31T16:00:00","Corinthians",0,"x",2,"Palmeiras","Arena Corinthians",null,null,null,null,null,null,null,null,null,null,null,null,null,null,null,0,3,1,1,0,2,0,1,0,0,1,0]
["2015-05-31T16:00:00","Internacional",0,"x",0,"São Paulo","Beira Rio",null,null,null,null,null,null,null,null,null,null,null,null,null,null,null,1,1,1,1,0,0,0,0,1,1,0,0]
["2015-05-31T16:00:00","Atlético-MG",3,"x",0,"Vasco","Independência",null,null,null,null,null,null,null,null,null,null,null,null,null,null,null,3,0,1,1,3,0,1,0,0,0,0,1]
["2015-05-31T16:00:00","Goiás",1,"x",1,"Grêmio","Serra Dourada",null,null,null,null,null,null,null,null,null,null,null,null,null,null,null,1,1,1,1,1,1,0,0,1,1,0,0]
["2015-05-31T18:30:00","Flamengo",2,"x",3,"Fluminense","Mineirão",null,null,null,null,"Aprenda Mais Excel",null,null,null,null,null,null,null,null,null,null,0,3,1,1,2,3,0,1,0,0,1,0]
["2015-05-31T18:30:00","Figueirense",2,"x",1,"Cruzeiro","Orlando Scarpelli",null,null,null,null,null,null,null,null,null,null,null,null,null,null,null,3,0,1,1,2,1,1,0,0,0,0,1]
["5 ª Rodada",null,null,null,null,null,null,null,null,null,null,null,null,null,null,null,null,null,null,null,null,null,"","","","","","",0,0,0,0,0,0]
["Data/Horário",null,null,null,null,null,"Local",null,null,null,null,null,null,null,null,null,null,null,null,null,null,null,"","","","","","",0,0,0,0,0,0]
["2015-06-03T19:30:00","Vasco",0,"x",3,"Ponte Preta","São Januário",null,null,null,null,null,null,null,null,null,null,null,null,null,null,null,0,3,1,1,0,3,0,1,0,0,1,0]
["2015-06-03T19:30:00","Atlético-PR",1,"x",0,"Figueirense","Arena da Baixada",null,null,null,null,null,null,null,null,null,null,null,null,null,null,null,3,0,1,1,1,0,1,0,0,0,0,1]
["2015-06-03T19:30:00","Chapecoense",2,"x",0,"Joinville","Arena Condá",null,null,null,null,null,null,null,null,null,null,null,null,null,null,null,3,0,1,1,2,0,1,0,0,0,0,1]
["2015-06-03T21:00:00","São Paulo",3,"x",2,"Santos","Morumbi",null,null,null,null,null,null,null,null,null,null,null,null,null,null,null,3,0,1,1,3,2,1,0,0,0,0,1]
["2015-06-03T22:00:00","Grêmio",3,"x",1,"Corinthians","Arena do Grêmio",null,null,null,null,null,null,null,null,null,null,null,null,null,null,null,3,0,1,1,3,1,1,0,0,0,0,1]
["2015-06-03T22:00:00","Cruzeiro",1,"x",0,"Flamengo","Mineirão",null,null,null,null,null,null,null,null,null,null,null,null,null,null,null,3,0,1,1,1,0,1,0,0,0,0,1]
["2015-06-03T22:00:00","Avaí",1,"x",4,"Atlético-MG","Ressacada",null,null,null,null,null,null,null,null,null,null,null,null,null,null,null,0,3,1,1,1,4,0,1,0,0,1,0]
["2015-06-03T16:00:00","Fluminense",2,"x",0,"Coritiba","Maracanã",null,null,null,null,null,null,null,null,null,null,null,null,null,null,null,3,0,1,1,2,0,1,0,0,0,0,1]
["2015-06-03T21:00:00","Palmeiras",1,"x",1,"Internacional","Arena Palmeiras",null,null,null,null,null,null,null,null,null,null,null,null,null,null,null,1,1,1,1,1,1,0,0,1,1,0,0]
["2015-06-03T21:00:00","Sport",1,"x",0,"Goiás","Ilha do Retiro",null,null,null,null,null,null,null,null,null,null,null,null,null,null,null,3,0,1,1,1,0,1,0,0,0,0,1]
["6 ª Rodada",null,null,null,null,null,null,null,null,null,null,null,null,null,null,null,null,null,null,null,null,null,"","","","","","",0,0,0,0,0,0]
["Data/Horário",null,null,null,null,null,"Local",null,null,null,null,null,null,null,null,null,null,null,null,null,null,null,"","","","","","",0,0,0,0,0,0]
["2015-06-06T18:30:00","Santos",2,"x",2,"Ponte Preta","Vila Belmiro",null,null,null,null,null,null,null,null,null,null,null,null,null,null,null,1,1,1,1,2,2,0,0,1,1,0,0]
["2015-06-06T18:30:00","Flamengo",1,"x",0,"Chapecoense","Maracanã",null,null,null,null,null,null,null,null,null,null,null,null,null,null,null,3,0,1,1,1,0,1,0,0,0,0,1]
["2015-06-06T18:30:00","Atlético-MG",1,"x",3,"Cruzeiro","Independência",null,null,null,null,null,null,null,null,null,null,null,null,null,null,null,{"$f":"IF(C70&E70=\"\",\"\",IF(C70=E70,1,IF(C70>E70,3,IF(C70<E70,0))))","v":0},{"$f":"IF(C70&E70=\"\",\"\",IF(E70=C70,1,IF(C70<E70,3,IF(C70>E70,0))))","v":3},{"$f":"IF(C70&E70=\"\",\"\",IF(C70&E70<>\"\",1))","v":1},{"$f":"IF(C70&E70=\"\",\"\",IF(C70&E70<>\"\",1))","v":1},{"$f":"IF(C70=\"\",\"\",C70)","v":1},{"$f":"IF(E70=\"\",\"\",E70)","v":3},0,1,0,0,1,0]
["2015-06-06T22:00:00","São Paulo",2,"x",0,"Grêmio","Morumbi",null,null,null,null,null,null,null,null,null,null,null,null,null,null,null,3,0,1,1,2,0,{"$f":"IF(W71=3,1,0)","v":1},{"$f":"IF(X71=3,1,0)","v":0},{"$f":"IF(W71=1,1,0)","v":0},{"$f":"IF(X71=1,1,0)","v":0},{"$f":"IF(W71=0,1,0)","v":0},{"$f":"IF(X71=0,1,0)","v":1}]
["2015-06-06T22:00:00","Atlético-PR",2,"x",0,"Vasco","Arena da Baixada",null,null,null,null,null,null,null,null,null,null,null,null,null,null,null,3,0,1,1,2,0,1,0,0,0,0,1]
["2015-06-06T22:00:00","Joinville",0,"x",1,"Corinthians","Arena Joinville",null,null,null,null,null,null,null,null,null,null,null,null,null,null,null,0,3,1,1,0,1,0,1,0,0,1,0]
["2015-06-07T11:00:00","Internacional",2,"x",0,"Coritiba","Beira Rio",null,null,null,null,null,null,null,null,null,null,null,null,null,null,null,3,0,1,1,2,0,1,0,0,0,0,1]
["2015-06-07T19:30:00","Fluminense",0,"x",0,"Sport","Maracanã",null,null,null,null,null,null,null,null,null,null,null,null,null,null,null,1,1,1,1,0,0,0,0,1,1,0,0]
["2015-06-07T19:30:00","Figueirense",2,"x",1,"Palmeiras","Orlando Scarpelli",null,null,null,null,null,null,null,null,null,null,null,null,null,null,null,3,0,1,1,2,1,1,0,0,0,0,1]
["2015-06-07T19:30:00","Goiás",0,"x",1,"Avaí","Serra Dourada",null,null,null,null,null,null,null,null,null,null,null,null,null,null,null,0,3,1,1,0,1,0,1,0,0,1,0]
["7 ª Rodada",null,null,null,null,null,null,null,null,null,null,null,null,null,null,null,null,null,null,null,null,null,"","","","","","",0,0,0,0,0,0]
["Data/Horário",null,null,null,null,null,"Local",null,null,null,null,null,null,null,null,null,null,null,null,null,null,null,"","","","","","",0,0,0,0,0,0]
["2015-06-10T19:30:00","Atlético-MG",2,"x",2,"Santos","Independência",null,null,null,null,null,null,null,null,null,null,null,null,null,null,null,1,1,1,1,2,2,0,0,1,1,0,0]
["2015-06-13T16:30:00","Corinthians",2,"x",1,"Internacional","Arena Corinthians",null,null,null,null,null,null,null,null,null,null,null,null,null,null,null,3,0,1,1,2,1,1,0,0,0,0,1]
["2015-06-13T16:30:00","Coritiba",0,"x",1,"Flamengo","Couto Pereira",null,null,null,null,null,null,null,null,null,null,null,null,null,null,null,0,3,1,1,0,1,0,1,0,0,1,0]
["2015-06-13T16:30:00","Chapecoense",0,"x",1,"São Paulo","Arena Condá",null,null,null,null,null,null,null,null,null,null,null,null,null,null,null,0,3,1,1,0,1,0,1,0,0,1,0]
["2015-06-13T21:00:00","Vasco",1,"x",3,"Cruzeiro","São Januário",null,null,null,null,null,null,null,null,null,null,null,null,null,null,null,0,3,1,1,1,3,0,1,0,0,1,0]
["2015-06-13T21:00:00","Sport",2,"x",1,"Joinville","Ilha do Retiro",null,null,null,null,null,null,null,null,null,null,null,null,null,null,null,3,0,1,1,2,1,1,0,0,0,0,1]
["2015-06-14T11:00:00","Ponte Preta",0,"x",0,"Goiás","Moisés Lucarelli",null,null,null,null,null,null,null,null,null,null,null,null,null,null,null,1,1,1,1,0,0,0,0,1,1,0,0]
["2015-06-14T16:00:00","Palmeiras",2,"x",1,"Fluminense","Arena Palmeiras",null,null,null,null,null,null,null,null,null,null,null,null,null,null,null,3,0,1,1,2,1,1,0,0,0,0,1]
["2015-06-14T16:00:00","Grêmio",2,"x",1,"Atlético-PR","Arena Grêmio",null,null,null,null,null,null,null,null,null,null,null,null,null,null,null,3,0,1,1,2,1,1,0,0,0,0,1]
["2015-06-14T16:00:00","Avaí",1,"x",1,"Figueirense","Ressacada",null,null,null,null,null,null,null,null,null,null,null,null,null,null,null,1,1,1,1,1,1,0,0,1,1,0,0]
["8 ª Rodada",null,null,null,null,null,null,null,null,null,null,null,null,null,null,null,null,null,null,null,null,null,"","","","","","",0,0,0,0,0,0]
["Data/Horário",null,null,null,null,null,"Local",null,null,null,null,null,null,null,null,null,null,null,null,null,null,null,"","","","","","",0,0,0,0,0,0]
[null,null,null,"x",null,null,null,null,null,null,null,null,null,null,null,null,null,null,null,null,null,null,"","","","","","",0,0,0,0,0,0]
[null,null,null,"x",null,null,null,null,null,null,null,null,null,null,null,null,null,null,null,null,null,null,"","","","","","",0,0,0,0,0,0]
[null,null,null,"x",null,null,null,null,null,null,null,null,null,null,null,null,null,null,null,null,null,null,"","","","","","",0,0,0,0,0,0]
[null,null,null,"x",null,null,null,null,null,null,null,null,null,null,null,null,null,null,null,null,null,null,"","","","","","",0,0,0,0,0,0]
[null,null,null,"x",null,null,null,null,null,null,null,null,null,null,null,null,null,null,null,null,null,null,"","","","","","",0,0,0,0,0,0]
[null,null,null,"x",null,null,null,null,null,null,null,null,null,null,null,null,null,null,null,null,null,null,"","","","","","",0,0,0,0,0,0]
[null,null,null,"x",null,null,null,null,null,null,null,null,null,null,null,null,null,null,null,null,null,null,"","","","","","",0,0,0,0,0,0]
[null,null,null,"x",null,null,null,null,null,null,null,null,null,null,null,null,null,null,null,null,null,null,"","","","","","",0,0,0,0,0,0]
[null,null,null,"x",null,null,null,null,null,null,null,null,null,null,null,null,null,null,null,null,null,null,"","","","","","",0,0,0,0,0,0]
[null,null,null,"x",null,null,null,null,null,null,null,null,null,null,null,null,null,null,null,null,null,null,"","","","","","",0,0,0,0,0,0]
["9 ª Rodada",null,null,null,null,null,null,null,null,null,null,null,null,null,null,null,null,null,null,null,null,null,"","","","","","",0,0,0,0,0,0]
["Data/Horário",null,null,null,null,null,"Local",null,null,null,null,null,null,null,null,null,null,null,null,null,null,null,"","","","","","",0,0,0,0,0,0]
[null,null,null,"x",null,null,null,null,null,null,null,null,null,null,null,null,null,null,null,null,null,null,"","","","","","",0,0,0,0,0,0]
[null,null,null,"x",null,null,null,null,null,null,null,null,null,null,null,null,null,null,null,null,null,null,"","","","","","",0,0,0,0,0,0]
[null,null,null,"x",null,null,null,null,null,null,null,null,null,null,null,null,null,null,null,null,null,null,"","","","","","",0,0,0,0,0,0]
[null,null,null,"x",null,null,null,null,null,null,null,null,null,null,null,null,null,null,null,null,null,null,"","","","","","",0,0,0,0,0,0]
[null,null,null,"x",null,null,null,null,null,null,null,null,null,null,null,null,null,null,null,null,null,null,"","","","","","",0,0,0,0,0,0]
[null,null,null,"x",null,null,null,null,null,null,null,null,null,null,null,null,null,null,null,null,null,null,"","","","","","",0,0,0,0,0,0]
[null,null,null,"x",null,null,null,null,null,null,null,null,null,null,null,null,null,null,null,null,null,null,"","","","","","",0,0,0,0,0,0]
[null,null,null,"x",null,null,null,null,null,null,null,null,null,null,null,null,null,null,null,null,null,null,"","","","","","",0,0,0,0,0,0]
[null,null,null,"x",null,null,null,null,null,null,null,null,null,null,null,null,null,null,null,null,null,null,"","","","","","",0,0,0,0,0,0]
[null,null,null,"x",null,null,null,null,null,null,null,null,null,null,null,null,null,null,null,null,null,null,"","","","","","",0,0,0,0,0,0]
["10 ª Rodada",null,null,null,null,null,null,null,null,null,null,null,null,null,null,null,null,null,null,null,null,null,"","","","","","",0,0,0,0,0,0]
["Data/Horário",null,null,null,null,null,"Local",null,null,null,null,null,null,null,null,null,null,null,null,null,null,null,"","","","","","",0,0,0,0,0,0]
[null,null,null,"x",null,null,null,null,null,null,null,null,null,null,null,null,null,null,null,null,null,null,"","","","","","",0,0,0,0,0,0]
[null,null,null,"x",null,null,null,null,null,null,null,null,null,null,null,null,null,null,null,null,null,null,"","","","","","",0,0,0,0,0,0]
[null,null,null,"x",null,null,null,null,null,null,null,null,null,null,null,null,null,null,null,null,null,null,"","","","","","",0,0,0,0,0,0]
[null,null,null,"x",null,null,null,null,null,null,null,null,null,null,null,null,null,null,null,null,null,null,"","","","","","",0,0,0,0,0,0]
[null,null,null,"x",null,null,null,null,null,null,null,null,null,null,null,null,null,null,null,null,null,null,"","","","","","",0,0,0,0,0,0]
[null,null,null,"x",null,null,null,null,null,null,null,null,null,null,null,null,null,null,null,null,null,null,"","","","","","",0,0,0,0,0,0]
[null,null,null,"x",null,null,null,null,null,null,null,null,null,null,null,null,null,null,null,null,null,null,"","","","","","",0,0,0,0,0,0]
[null,null,null,"x",null,null,null,null,null,null,null,null,null,null,null,null,null,null,null,null,null,null,"","","","","","",0,0,0,0,0,0]
[null,null,null,"x",null,null,null,null,null,null,null,null,null,null,null,null,null,null,null,null,null,null,"","","","","","",0,0,0,0,0,0]
[null,null,null,"x",null,null,null,null,null,null,null,null,null,null,null,null,null,null,null,null,null,null,"","","","","","",0,0,0,0,0,0]
["11 ª Rodada",null,null,null,null,null,null,null,null,null,null,null,null,null,null,null,null,null,null,null,null,null,"","","","","","",0,0,0,0,0,0]
["Data/Horário",null,null,null,null,null,"Local",null,null,null,null,null,null,null,null,null,null,null,null,null,null,null,"","","","","","",0,0,0,0,0,0]
[null,null,null,"x",null,null,null,null,null,null,null,null,null,null,null,null,null,null,null,null,null,null,"","","","","","",0,0,0,0,0,0]
[null,null,null,"x",null,null,null,null,null,null,null,null,null,null,null,null,null,null,null,null,null,null,"","","","","","",0,0,0,0,0,0]
[null,null,null,"x",null,null,null,null,null,null,null,null,null,null,null,null,null,null,null,null,null,null,"","","","","","",0,0,0,0,0,0]
[null,null,null,"x",null,null,null,null,null,null,null,null,null,null,null,null,null,null,null,null,null,null,"","","","","","",0,0,0,0,0,0]
[null,null,null,"x",null,null,null,null,null,null,null,null,null,null,null,null,null,null,null,null,null,null,"","","","","","",0,0,0,0,0,0]
[null,null,null,"x",null,null,null,null,null,null,null,null,null,null,null,null,null,null,null,null,null,null,"","","","","","",0,0,0,0,0,0]
[null,null,null,"x",null,null,null,null,null,null,null,null,null,null,null,null,null,null,null,null,null,null,{"$f":"IF(C134&E134=\"\",\"\",IF(C134=E134,1,IF(C134>E134,3,IF(C134<E134,0))))","v":""},{"$f":"IF(C134&E134=\"\",\"\",IF(E134=C134,1,IF(C134<E134,3,IF(C134>E134,0))))","v":""},{"$f":"IF(C134&E134=\"\",\"\",IF(C134&E134<>\"\",1))","v":""},{"$f":"IF(C134&E134=\"\",\"\",IF(C134&E134<>\"\",1))","v":""},{"$f":"IF(C134=\"\",\"\",C134)","v":""},{"$f":"IF(E134=\"\",\"\",E134)","v":""},0,0,0,0,0,0]
[null,null,null,"x",null,null,null,null,null,null,null,null,null,null,null,null,null,null,null,null,null,null,"","","","","","",{"$f":"IF(W135=3,1,0)","v":0},{"$f":"IF(X135=3,1,0)","v":0},{"$f":"IF(W135=1,1,0)","v":0},{"$f":"IF(X135=1,1,0)","v":0},{"$f":"IF(W135=0,1,0)","v":0},{"$f":"IF(X135=0,1,0)","v":0}]
[null,null,null,"x",null,null,null,null,null,null,null,null,null,null,null,null,null,null,null,null,null,null,"","","","","","",0,0,0,0,0,0]
[null,null,null,"x",null,null,null,null,null,null,null,null,null,null,null,null,null,null,null,null,null,null,"","","","","","",0,0,0,0,0,0]
["12 ª Rodada",null,null,null,null,null,null,null,null,null,null,null,null,null,null,null,null,null,null,null,null,null,"","","","","","",0,0,0,0,0,0]
["Data/Horário",null,null,null,null,null,"Local",null,null,null,null,null,null,null,null,null,null,null,null,null,null,null,"","","","","","",0,0,0,0,0,0]
[null,null,null,"x",null,null,null,null,null,null,null,null,null,null,null,null,null,null,null,null,null,null,"","","","","","",0,0,0,0,0,0]
[null,null,null,"x",null,null,null,null,null,null,null,null,null,null,null,null,null,null,null,null,null,null,"","","","","","",0,0,0,0,0,0]
[null,null,null,"x",null,null,null,null,null,null,null,null,null,null,null,null,null,null,null,null,null,null,"","","","","","",0,0,0,0,0,0]
[null,null,null,"x",null,null,null,null,null,null,null,null,null,null,null,null,null,null,null,null,null,null,"","","","","","",0,0,0,0,0,0]
[null,null,null,"x",null,null,null,null,null,null,null,null,null,null,null,null,null,null,null,null,null,null,"","","","","","",0,0,0,0,0,0]
[null,null,null,"x",null,null,null,null,null,null,null,null,null,null,null,null,null,null,null,null,null,null,"","","","","","",0,0,0,0,0,0]
[null,null,null,"x",null,null,null,null,null,null,null,null,null,null,null,null,null,null,null,null,null,null,"","","","","","",0,0,0,0,0,0]
[null,null,null,"x",null,null,null,null,null,null,null,null,null,null,null,null,null,null,null,null,null,null,"","","","","","",0,0,0,0,0,0]
[null,null,null,"x",null,null,null,null,null,null,null,null,null,null,null,null,null,null,null,null,null,null,"","","","","","",0,0,0,0,0,0]
[null,null,null,"x",null,null,null,null,null,null,null,null,null,null,null,null,null,null,null,null,null,null,"","","","","","",0,0,0,0,0,0]
["13 ª Rodada",null,null,null,null,null,null,null,null,null,null,null,null,null,null,null,null,null,null,null,null,null,"","","","","","",0,0,0,0,0,0]
["Data/Horário",null,null,null,null,null,"Local",null,null,null,null,null,null,null,null,null,null,null,null,null,null,null,"","","","","","",0,0,0,0,0,0]
[null,null,null,"x",null,null,null,null,null,null,null,null,null,null,null,null,null,null,null,null,null,null,"","","","","","",0,0,0,0,0,0]
[null,null,null,"x",null,null,null,null,null,null,null,null,null,null,null,null,null,null,null,null,null,null,"","","","","","",0,0,0,0,0,0]
[null,null,null,"x",null,null,null,null,null,null,null,null,null,null,null,null,null,null,null,null,null,null,"","","","","","",0,0,0,0,0,0]
[null,null,null,"x",null,null,null,null,null,null,null,null,null,null,null,null,null,null,null,null,null,null,"","","","","","",0,0,0,0,0,0]
[null,null,null,"x",null,null,null,null,null,null,null,null,null,null,null,null,null,null,null,null,null,null,"","","","","","",0,0,0,0,0,0]
[null,null,null,"x",null,null,null,null,null,null,null,null,null,null,null,null,null,null,null,null,null,null,"","","","","","",0,0,0,0,0,0]
[null,null,null,"x",null,null,null,null,null,null,null,null,null,null,null,null,null,null,null,null,null,null,"","","","","","",0,0,0,0,0,0]
[null,null,null,"x",null,null,null,null,null,null,null,null,null,null,null,null,null,null,null,null,null,null,"","","","","","",0,0,0,0,0,0]
[null,null,null,"x",null,null,null,null,null,null,null,null,null,null,null,null,null,null,null,null,null,null,"","","","","","",0,0,0,0,0,0]
[null,null,null,"x",null,null,null,null,null,null,null,null,null,null,null,null,null,null,null,null,null,null,"","","","","","",0,0,0,0,0,0]
["14 ª Rodada",null,null,null,null,null,null,null,null,null,null,null,null,null,null,null,null,null,null,null,null,null,"","","","","","",0,0,0,0,0,0]
["Data/Horário",null,null,null,null,null,"Local",null,null,null,null,null,null,null,null,null,null,null,null,null,null,null,"","","","","","",0,0,0,0,0,0]
[null,null,null,"x",null,null,null,null,null,null,null,null,null,null,null,null,null,null,null,null,null,null,"","","","","","",0,0,0,0,0,0]
[null,null,null,"x",null,null,null,null,null,null,null,null,null,null,null,null,null,null,null,null,null,null,"","","","","","",0,0,0,0,0,0]
[null,null,null,"x",null,null,null,null,null,null,null,null,null,null,null,null,null,null,null,null,null,null,"","","","","","",0,0,0,0,0,0]
[null,null,null,"x",null,null,null,null,null,null,null,null,null,null,null,null,null,null,null,null,null,null,"","","","","","",0,0,0,0,0,0]
[null,null,null,"x",null,null,null,null,null,null,null,null,null,null,null,null,null,null,null,null,null,null,"","","","","","",0,0,0,0,0,0]
[null,null,null,"x",null,null,null,null,null,null,null,null,null,null,null,null,null,null,null,null,null,null,"","","","","","",0,0,0,0,0,0]
[null,null,null,"x",null,null,null,null,null,null,null,null,null,null,null,null,null,null,null,null,null,null,"","","","","","",0,0,0,0,0,0]
[null,null,null,"x",null,null,null,null,null,null,null,null,null,null,null,null,null,null,null,null,null,null,"","","","","","",0,0,0,0,0,0]
[null,null,null,"x",null,null,null,null,null,null,null,null,null,null,null,null,null,null,null,null,null,null,"","","","","","",0,0,0,0,0,0]
[null,null,null,"x",null,null,null,null,null,null,null,null,null,null,null,null,null,null,null,null,null,null,"","","","","","",0,0,0,0,0,0]
["15 ª Rodada",null,null,null,null,null,null,null,null,null,null,null,null,null,null,null,null,null,null,null,null,null,"","","","","","",0,0,0,0,0,0]
["Data/Horário",null,null,null,null,null,"Local",null,null,null,null,null,null,null,null,null,null,null,null,null,null,null,"","","","","","",0,0,0,0,0,0]
[null,null,null,"x",null,null,null,null,null,null,null,null,null,null,null,null,null,null,null,null,null,null,"","","","","","",0,0,0,0,0,0]
[null,null,null,"x",null,null,null,null,null,null,null,null,null,null,null,null,null,null,null,null,null,null,"","","","","","",0,0,0,0,0,0]
[null,null,null,"x",null,null,null,null,null,null,null,null,null,null,null,null,null,null,null,null,null,null,"","","","","","",0,0,0,0,0,0]
[null,null,null,"x",null,null,null,null,null,null,null,null,null,null,null,null,null,null,null,null,null,null,"","","","","","",0,0,0,0,0,0]
[null,null,null,"x",null,null,null,null,null,null,null,null,null,null,null,null,null,null,null,null,null,null,"","","","","","",0,0,0,0,0,0]
[null,null,null,"x",null,null,null,null,null,null,null,null,null,null,null,null,null,null,null,null,null,null,"","","","","","",0,0,0,0,0,0]
[null,null,null,"x",null,null,null,null,null,null,null,null,null,null,null,null,null,null,null,null,null,null,"","","","","","",0,0,0,0,0,0]
[null,null,null,"x",null,null,null,null,null,null,null,null,null,null,null,null,null,null,null,null,null,null,"","","","","","",0,0,0,0,0,0]
[null,null,null,"x",null,null,null,null,null,null,null,null,null,null,null,null,null,null,null,null,null,null,"","","","","","",0,0,0,0,0,0]
[null,null,null,"x",null,null,null,null,null,null,null,null,null,null,null,null,null,null,null,null,null,null,"","","","","","",0,0,0,0,0,0]
["16 ª Rodada",null,null,null,null,null,null,null,null,null,null,null,null,null,null,null,null,null,null,null,null,null,"","","","","","",0,0,0,0,0,0]
["Data/Horário",null,null,null,null,null,"Local",null,null,null,null,null,null,null,null,null,null,null,null,null,null,null,"","","","","","",0,0,0,0,0,0]
[null,null,null,"x",null,null,null,null,null,null,null,null,null,null,null,null,null,null,null,null,null,null,"","","","","","",0,0,0,0,0,0]
[null,null,null,"x",null,null,null,null,null,null,null,null,null,null,null,null,null,null,null,null,null,null,"","","","","","",0,0,0,0,0,0]
[null,null,null,"x",null,null,null,null,null,null,null,null,null,null,null,null,null,null,null,null,null,null,"","","","","","",0,0,0,0,0,0]
[null,null,null,"x",null,null,null,null,null,null,null,null,null,null,null,null,null,null,null,null,null,null,"","","","","","",0,0,0,0,0,0]
[null,null,null,"x",null,null,null,null,null,null,null,null,null,null,null,null,null,null,null,null,null,null,"","","","","","",0,0,0,0,0,0]
[null,null,null,"x",null,null,null,null,null,null,null,null,null,null,null,null,null,null,null,null,null,null,"","","","","","",0,0,0,0,0,0]
[null,null,null,"x",null,null,null,null,null,null,null,null,null,null,null,null,null,null,null,null,null,null,"","","","","","",0,0,0,0,0,0]
[null,null,null,"x",null,null,null,null,null,null,null,null,null,null,null,null,null,null,null,null,null,null,"","","","","","",0,0,0,0,0,0]
[null,null,null,"x",null,null,null,null,null,null,null,null,null,null,null,null,null,null,null,null,null,null,"","","","","","",0,0,0,0,0,0]
[null,null,null,"x",null,null,null,null,null,null,null,null,null,null,null,null,null,null,null,null,null,null,"","","","","","",0,0,0,0,0,0]
["17 ª Rodada",null,null,null,null,null,null,null,null,null,null,null,null,null,null,null,null,null,null,null,null,null,{"$f":"IF(C198&E198=\"\",\"\",IF(C198=E198,1,IF(C198>E198,3,IF(C198<E198,0))))","v":""},{"$f":"IF(C198&E198=\"\",\"\",IF(E198=C198,1,IF(C198<E198,3,IF(C198>E198,0))))","v":""},{"$f":"IF(C198&E198=\"\",\"\",IF(C198&E198<>\"\",1))","v":""},{"$f":"IF(C198&E198=\"\",\"\",IF(C198&E198<>\"\",1))","v":""},{"$f":"IF(C198=\"\",\"\",C198)","v":""},{"$f":"IF(E198=\"\",\"\",E198)","v":""},0,0,0,0,0,0]
["Data/Horário",null,null,null,null,null,"Local",null,null,null,null,null,null,null,null,null,null,null,null,null,null,null,"","","","","","",{"$f":"IF(W199=3,1,0)","v":0},{"$f":"IF(X199=3,1,0)","v":0},{"$f":"IF(W199=1,1,0)","v":0},{"$f":"IF(X199=1,1,0)","v":0},{"$f":"IF(W199=0,1,0)","v":0},{"$f":"IF(X199=0,1,0)","v":0}]
[null,null,null,"x",null,null,null,null,null,null,null,null,null,null,null,null,null,null,null,null,null,null,"","","","","","",0,0,0,0,0,0]
[null,null,null,"x",null,null,null,null,null,null,null,null,null,null,null,null,null,null,null,null,null,null,"","","","","","",0,0,0,0,0,0]
[null,null,null,"x",null,null,null,null,null,null,null,null,null,null,null,null,null,null,null,null,null,null,"","","","","","",0,0,0,0,0,0]
[null,null,null,"x",null,null,null,null,null,null,null,null,null,null,null,null,null,null,null,null,null,null,"","","","","","",0,0,0,0,0,0]
[null,null,null,"x",null,null,null,null,null,null,null,null,null,null,null,null,null,null,null,null,null,null,"","","","","","",0,0,0,0,0,0]
[null,null,null,"x",null,null,null,null,null,null,null,null,null,null,null,null,null,null,null,null,null,null,"","","","","","",0,0,0,0,0,0]
[null,null,null,"x",null,null,null,null,null,null,null,null,null,null,null,null,null,null,null,null,null,null,"","","","","","",0,0,0,0,0,0]
[null,null,null,"x",null,null,null,null,null,null,null,null,null,null,null,null,null,null,null,null,null,null,"","","","","","",0,0,0,0,0,0]
[null,null,null,"x",null,null,null,null,null,null,null,null,null,null,null,null,null,null,null,null,null,null,"","","","","","",0,0,0,0,0,0]
[null,null,null,"x",null,null,null,null,null,null,null,null,null,null,null,null,null,null,null,null,null,null,"","","","","","",0,0,0,0,0,0]
["18 ª Rodada",null,null,null,null,null,null,null,null,null,null,null,null,null,null,null,null,null,null,null,null,null,"","","","","","",0,0,0,0,0,0]
["Data/Horário",null,null,null,null,null,"Local",null,null,null,null,null,null,null,null,null,null,null,null,null,null,null,"","","","","","",0,0,0,0,0,0]
[null,null,null,"x",null,null,null,null,null,null,null,null,null,null,null,null,null,null,null,null,null,null,"","","","","","",0,0,0,0,0,0]
[null,null,null,"x",null,null,null,null,null,null,null,null,null,null,null,null,null,null,null,null,null,null,"","","","","","",0,0,0,0,0,0]
[null,null,null,"x",null,null,null,null,null,null,null,null,null,null,null,null,null,null,null,null,null,null,"","","","","","",0,0,0,0,0,0]
[null,null,null,"x",null,null,null,null,null,null,null,null,null,null,null,null,null,null,null,null,null,null,"","","","","","",0,0,0,0,0,0]
[null,null,null,"x",null,null,null,null,null,null,null,null,null,null,null,null,null,null,null,null,null,null,"","","","","","",0,0,0,0,0,0]
[null,null,null,"x",null,null,null,null,null,null,null,null,null,null,null,null,null,null,null,null,null,null,"","","","","","",0,0,0,0,0,0]
[null,null,null,"x",null,null,null,null,null,null,null,null,null,null,null,null,null,null,null,null,null,null,"","","","","","",0,0,0,0,0,0]
[null,null,null,"x",null,null,null,null,null,null,null,null,null,null,null,null,null,null,null,null,null,null,"","","","","","",0,0,0,0,0,0]
[null,null,null,"x",null,null,null,null,null,null,null,null,null,null,null,null,null,null,null,null,null,null,"","","","","","",0,0,0,0,0,0]
[null,null,null,"x",null,null,null,null,null,null,null,null,null,null,null,null,null,null,null,null,null,null,"","","","","","",0,0,0,0,0,0]
["19 ª Rodada",null,null,null,null,null,null,null,null,null,null,null,null,null,null,null,null,null,null,null,null,null,"","","","","","",0,0,0,0,0,0]
["Data/Horário",null,null,null,null,null,"Local",null,null,null,null,null,null,null,null,null,null,null,null,null,null,null,"","","","","","",0,0,0,0,0,0]
[null,null,null,"x",null,null,null,null,null,null,null,null,null,null,null,null,null,null,null,null,null,null,"","","","","","",0,0,0,0,0,0]
[null,null,null,"x",null,null,null,null,null,null,null,null,null,null,null,null,null,null,null,null,null,null,"","","","","","",0,0,0,0,0,0]
[null,null,null,"x",null,null,null,null,null,null,null,null,null,null,null,null,null,null,null,null,null,null,"","","","","","",0,0,0,0,0,0]
[null,null,null,"x",null,null,null,null,null,null,null,null,null,null,null,null,null,null,null,null,null,null,"","","","","","",0,0,0,0,0,0]
[null,null,null,"x",null,null,null,null,null,null,null,null,null,null,null,null,null,null,null,null,null,null,"","","","","","",0,0,0,0,0,0]
[null,null,null,"x",null,null,null,null,null,null,null,null,null,null,null,null,null,null,null,null,null,null,"","","","","","",0,0,0,0,0,0]
[null,null,null,"x",null,null,null,null,null,null,null,null,null,null,null,null,null,null,null,null,null,null,"","","","","","",0,0,0,0,0,0]
[null,null,null,"x",null,null,null,null,null,null,null,null,null,null,null,null,null,null,null,null,null,null,"","","","","","",0,0,0,0,0,0]
[null,null,null,"x",null,null,null,null,null,null,null,null,null,null,null,null,null,null,null,null,null,null,"","","","","","",0,0,0,0,0,0]
[null,null,null,"x",null,null,null,null,null,null,null,null,null,null,null,null,null,null,null,null,null,null,"","","","","","",0,0,0,0,0,0]
["20 ª Rodada",null,null,null,null,null,null,null,null,null,null,null,null,null,null,null,null,null,null,null,null,null,"","","","","","",0,0,0,0,0,0]
["Data/Horário",null,null,null,null,null,"Local",null,null,null,null,null,null,null,null,null,null,null,null,null,null,null,"","","","","","",0,0,0,0,0,0]
[null,null,null,"x",null,null,null,null,null,null,null,null,null,null,null,null,null,null,null,null,null,null,"","","","","","",0,0,0,0,0,0]
[null,null,null,"x",null,null,null,null,null,null,null,null,null,null,null,null,null,null,null,null,null,null,"","","","","","",0,0,0,0,0,0]
[null,null,null,"x",null,null,null,null,null,null,null,null,null,null,null,null,null,null,null,null,null,null,"","","","","","",0,0,0,0,0,0]
[null,null,null,"x",null,null,null,null,null,null,null,null,null,null,null,null,null,null,null,null,null,null,"","","","","","",0,0,0,0,0,0]
[null,null,null,"x",null,null,null,null,null,null,null,null,null,null,null,null,null,null,null,null,null,null,"","","","","","",0,0,0,0,0,0]
[null,null,null,"x",null,null,null,null,null,null,null,null,null,null,null,null,null,null,null,null,null,null,"","","","","","",0,0,0,0,0,0]
[null,null,null,"x",null,null,null,null,null,null,null,null,null,null,null,null,null,null,null,null,null,null,"","","","","","",0,0,0,0,0,0]
[null,null,null,"x",null,null,null,null,null,null,null,null,null,null,null,null,null,null,null,null,null,null,"","","","","","",0,0,0,0,0,0]
[null,null,null,"x",null,null,null,null,null,null,null,null,null,null,null,null,null,null,null,null,null,null,"","","","","","",0,0,0,0,0,0]
[null,null,null,"x",null,null,null,null,null,null,null,null,null,null,null,null,null,null,null,null,null,null,"","","","","","",0,0,0,0,0,0]
["21 ª Rodada",null,null,null,null,null,null,null,null,null,null,null,null,null,null,null,null,null,null,null,null,null,"","","","","","",0,0,0,0,0,0]
["Data/Horário",null,null,null,null,null,"Local",null,null,null,null,null,null,null,null,null,null,null,null,null,null,null,"","","","","","",0,0,0,0,0,0]
[null,null,null,"x",null,null,null,null,null,null,null,null,null,null,null,null,null,null,null,null,null,null,"","","","","","",0,0,0,0,0,0]
[null,null,null,"x",null,null,null,null,null,null,null,null,null,null,null,null,null,null,null,null,null,null,"","","","","","",0,0,0,0,0,0]
[null,null,null,"x",null,null,null,null,null,null,null,null,null,null,null,null,null,null,null,null,null,null,"","","","","","",0,0,0,0,0,0]
[null,null,null,"x",null,null,null,null,null,null,null,null,null,null,null,null,null,null,null,null,null,null,"","","","","","",0,0,0,0,0,0]
[null,null,null,"x",null,null,null,null,null,null,null,null,null,null,null,null,null,null,null,null,null,null,"","","","","","",0,0,0,0,0,0]
[null,null,null,"x",null,null,null,null,null,null,null,null,null,null,null,null,null,null,null,null,null,null,"","","","","","",0,0,0,0,0,0]
[null,null,null,"x",null,null,null,null,null,null,null,null,null,null,null,null,null,null,null,null,null,null,"","","","","","",0,0,0,0,0,0]
[null,null,null,"x",null,null,null,null,null,null,null,null,null,null,null,null,null,null,null,null,null,null,"","","","","","",0,0,0,0,0,0]
[null,null,null,"x",null,null,null,null,null,null,null,null,null,null,null,null,null,null,null,null,null,null,"","","","","","",0,0,0,0,0,0]
[null,null,null,"x",null,null,null,null,null,null,null,null,null,null,null,null,null,null,null,null,null,null,"","","","","","",0,0,0,0,0,0]
["22 ª Rodada",null,null,null,null,null,null,null,null,null,null,null,null,null,null,null,null,null,null,null,null,null,"","","","","","",0,0,0,0,0,0]
["Data/Horário",null,null,null,null,null,"Local",null,null,null,null,null,null,null,null,null,null,null,null,null,null,null,"","","","","","",0,0,0,0,0,0]
[null,null,null,"x",null,null,null,null,null,null,null,null,null,null,null,null,null,null,null,null,null,null,"","","","","","",0,0,0,0,0,0]
[null,null,null,"x",null,null,null,null,null,null,null,null,null,null,null,null,null,null,null,null,null,null,"","","","","","",0,0,0,0,0,0]
[null,null,null,"x",null,null,null,null,null,null,null,null,null,null,null,null,null,null,null,null,null,null,{"$f":"IF(C262&E262=\"\",\"\",IF(C262=E262,1,IF(C262>E262,3,IF(C262<E262,0))))","v":""},{"$f":"IF(C262&E262=\"\",\"\",IF(E262=C262,1,IF(C262<E262,3,IF(C262>E262,0))))","v":""},{"$f":"IF(C262&E262=\"\",\"\",IF(C262&E262<>\"\",1))","v":""},{"$f":"IF(C262&E262=\"\",\"\",IF(C262&E262<>\"\",1))","v":""},{"$f":"IF(C262=\"\",\"\",C262)","v":""},{"$f":"IF(E262=\"\",\"\",E262)","v":""},0,0,0,0,0,0]
[null,null,null,"x",null,null,null,null,null,null,null,null,null,null,null,null,null,null,null,null,null,null,"","","","","","",{"$f":"IF(W263=3,1,0)","v":0},{"$f":"IF(X263=3,1,0)","v":0},{"$f":"IF(W263=1,1,0)","v":0},{"$f":"IF(X263=1,1,0)","v":0},{"$f":"IF(W263=0,1,0)","v":0},{"$f":"IF(X263=0,1,0)","v":0}]
[null,null,null,"x",null,null,null,null,null,null,null,null,null,null,null,null,null,null,null,null,null,null,"","","","","","",0,0,0,0,0,0]
[null,null,null,"x",null,null,null,null,null,null,null,null,null,null,null,null,null,null,null,null,null,null,"","","","","","",0,0,0,0,0,0]
[null,null,null,"x",null,null,null,null,null,null,null,null,null,null,null,null,null,null,null,null,null,null,"","","","","","",0,0,0,0,0,0]
[null,null,null,"x",null,null,null,null,null,null,null,null,null,null,null,null,null,null,null,null,null,null,"","","","","","",0,0,0,0,0,0]
[null,null,null,"x",null,null,null,null,null,null,null,null,null,null,null,null,null,null,null,null,null,null,"","","","","","",0,0,0,0,0,0]
[null,null,null,"x",null,null,null,null,null,null,null,null,null,null,null,null,null,null,null,null,null,null,"","","","","","",0,0,0,0,0,0]
["23 ª Rodada",null,null,null,null,null,null,null,null,null,null,null,null,null,null,null,null,null,null,null,null,null,"","","","","","",0,0,0,0,0,0]
["Data/Horário",null,null,null,null,null,"Local",null,null,null,null,null,null,null,null,null,null,null,null,null,null,null,"","","","","","",0,0,0,0,0,0]
[null,null,null,"x",null,null,null,null,null,null,null,null,null,null,null,null,null,null,null,null,null,null,"","","","","","",0,0,0,0,0,0]
[null,null,null,"x",null,null,null,null,null,null,null,null,null,null,null,null,null,null,null,null,null,null,"","","","","","",0,0,0,0,0,0]
[null,null,null,"x",null,null,null,null,null,null,null,null,null,null,null,null,null,null,null,null,null,null,"","","","","","",0,0,0,0,0,0]
[null,null,null,"x",null,null,null,null,null,null,null,null,null,null,null,null,null,null,null,null,null,null,"","","","","","",0,0,0,0,0,0]
[null,null,null,"x",null,null,null,null,null,null,null,null,null,null,null,null,null,null,null,null,null,null,"","","","","","",0,0,0,0,0,0]
[null,null,null,"x",null,null,null,null,null,null,null,null,null,null,null,null,null,null,null,null,null,null,"","","","","","",0,0,0,0,0,0]
[null,null,null,"x",null,null,null,null,null,null,null,null,null,null,null,null,null,null,null,null,null,null,"","","","","","",0,0,0,0,0,0]
[null,null,null,"x",null,null,null,null,null,null,null,null,null,null,null,null,null,null,null,null,null,null,"","","","","","",0,0,0,0,0,0]
[null,null,null,"x",null,null,null,null,null,null,null,null,null,null,null,null,null,null,null,null,null,null,"","","","","","",0,0,0,0,0,0]
[null,null,null,"x",null,null,null,null,null,null,null,null,null,null,null,null,null,null,null,null,null,null,"","","","","","",0,0,0,0,0,0]
["24 ª Rodada",null,null,null,null,null,null,null,null,null,null,null,null,null,null,null,null,null,null,null,null,null,"","","","","","",0,0,0,0,0,0]
["Data/Horário",null,null,null,null,null,"Local",null,null,null,null,null,null,null,null,null,null,null,null,null,null,null,"","","","","","",0,0,0,0,0,0]
[null,null,null,"x",null,null,null,null,null,null,null,null,null,null,null,null,null,null,null,null,null,null,"","","","","","",0,0,0,0,0,0]
[null,null,null,"x",null,null,null,null,null,null,null,null,null,null,null,null,null,null,null,null,null,null,"","","","","","",0,0,0,0,0,0]
[null,null,null,"x",null,null,null,null,null,null,null,null,null,null,null,null,null,null,null,null,null,null,"","","","","","",0,0,0,0,0,0]
[null,null,null,"x",null,null,null,null,null,null,null,null,null,null,null,null,null,null,null,null,null,null,"","","","","","",0,0,0,0,0,0]
[null,null,null,"x",null,null,null,null,null,null,null,null,null,null,null,null,null,null,null,null,null,null,"","","","","","",0,0,0,0,0,0]
[null,null,null,"x",null,null,null,null,null,null,null,null,null,null,null,null,null,null,null,null,null,null,"","","","","","",0,0,0,0,0,0]
[null,null,null,"x",null,null,null,null,null,null,null,null,null,null,null,null,null,null,null,null,null,null,"","","","","","",0,0,0,0,0,0]
[null,null,null,"x",null,null,null,null,null,null,null,null,null,null,null,null,null,null,null,null,null,null,"","","","","","",0,0,0,0,0,0]
[null,null,null,"x",null,null,null,null,null,null,null,null,null,null,null,null,null,null,null,null,null,null,"","","","","","",0,0,0,0,0,0]
[null,null,null,"x",null,null,null,null,null,null,null,null,null,null,null,null,null,null,null,null,null,null,"","","","","","",0,0,0,0,0,0]
["25 ª Rodada",null,null,null,null,null,null,null,null,null,null,null,null,null,null,null,null,null,null,null,null,null,"","","","","","",0,0,0,0,0,0]
["Data/Horário",null,null,null,null,null,"Local",null,null,null,null,null,null,null,null,null,null,null,null,null,null,null,"","","","","","",0,0,0,0,0,0]
[null,null,null,"x",null,null,null,null,null,null,null,null,null,null,null,null,null,null,null,null,null,null,"","","","","","",0,0,0,0,0,0]
[null,null,null,"x",null,null,null,null,null,null,null,null,null,null,null,null,null,null,null,null,null,null,"","","","","","",0,0,0,0,0,0]
[null,null,null,"x",null,null,null,null,null,null,null,null,null,null,null,null,null,null,null,null,null,null,"","","","","","",0,0,0,0,0,0]
[null,null,null,"x",null,null,null,null,null,null,null,null,null,null,null,null,null,null,null,null,null,null,"","","","","","",0,0,0,0,0,0]
[null,null,null,"x",null,null,null,null,null,null,null,null,null,null,null,null,null,null,null,null,null,null,"","","","","","",0,0,0,0,0,0]
[null,null,null,"x",null,null,null,null,null,null,null,null,null,null,null,null,null,null,null,null,null,null,"","","","","","",0,0,0,0,0,0]
[null,null,null,"x",null,null,null,null,null,null,null,null,null,null,null,null,null,null,null,null,null,null,"","","","","","",0,0,0,0,0,0]
[null,null,null,"x",null,null,null,null,null,null,null,null,null,null,null,null,null,null,null,null,null,null,"","","","","","",0,0,0,0,0,0]
[null,null,null,"x",null,null,null,null,null,null,null,null,null,null,null,null,null,null,null,null,null,null,"","","","","","",0,0,0,0,0,0]
[null,null,null,"x",null,null,null,null,null,null,null,null,null,null,null,null,null,null,null,null,null,null,"","","","","","",0,0,0,0,0,0]
["26 ª Rodada",null,null,null,null,null,null,null,null,null,null,null,null,null,null,null,null,null,null,null,null,null,"","","","","","",0,0,0,0,0,0]
["Data/Horário",null,null,null,null,null,"Local",null,null,null,null,null,null,null,null,null,null,null,null,null,null,null,"","","","","","",0,0,0,0,0,0]
[null,null,null,"x",null,null,null,null,null,null,null,null,null,null,null,null,null,null,null,null,null,null,"","","","","","",0,0,0,0,0,0]
[null,null,null,"x",null,null,null,null,null,null,null,null,null,null,null,null,null,null,null,null,null,null,"","","","","","",0,0,0,0,0,0]
[null,null,null,"x",null,null,null,null,null,null,null,null,null,null,null,null,null,null,null,null,null,null,"","","","","","",0,0,0,0,0,0]
[null,null,null,"x",null,null,null,null,null,null,null,null,null,null,null,null,null,null,null,null,null,null,"","","","","","",0,0,0,0,0,0]
[null,null,null,"x",null,null,null,null,null,null,null,null,null,null,null,null,null,null,null,null,null,null,"","","","","","",0,0,0,0,0,0]
[null,null,null,"x",null,null,null,null,null,null,null,null,null,null,null,null,null,null,null,null,null,null,"","","","","","",0,0,0,0,0,0]
[null,null,null,"x",null,null,null,null,null,null,null,null,null,null,null,null,null,null,null,null,null,null,"","","","","","",0,0,0,0,0,0]
[null,null,null,"x",null,null,null,null,null,null,null,null,null,null,null,null,null,null,null,null,null,null,"","","","","","",0,0,0,0,0,0]
[null,null,null,"x",null,null,null,null,null,null,null,null,null,null,null,null,null,null,null,null,null,null,"","","","","","",0,0,0,0,0,0]
[null,null,null,"x",null,null,null,null,null,null,null,null,null,null,null,null,null,null,null,null,null,null,"","","","","","",0,0,0,0,0,0]
["27 ª Rodada",null,null,null,null,null,null,null,null,null,null,null,null,null,null,null,null,null,null,null,null,null,"","","","","","",0,0,0,0,0,0]
["Data/Horário",null,null,null,null,null,"Local",null,null,null,null,null,null,null,null,null,null,null,null,null,null,null,"","","","","","",0,0,0,0,0,0]
[null,null,null,"x",null,null,null,null,null,null,null,null,null,null,null,null,null,null,null,null,null,null,"","","","","","",0,0,0,0,0,0]
[null,null,null,"x",null,null,null,null,null,null,null,null,null,null,null,null,null,null,null,null,null,null,"","","","","","",0,0,0,0,0,0]
[null,null,null,"x",null,null,null,null,null,null,null,null,null,null,null,null,null,null,null,null,null,null,"","","","","","",0,0,0,0,0,0]
[null,null,null,"x",null,null,null,null,null,null,null,null,null,null,null,null,null,null,null,null,null,null,"","","","","","",0,0,0,0,0,0]
[null,null,null,"x",null,null,null,null,null,null,null,null,null,null,null,null,null,null,null,null,null,null,"","","","","","",0,0,0,0,0,0]
[null,null,null,"x",null,null,null,null,null,null,null,null,null,null,null,null,null,null,null,null,null,null,"","","","","","",0,0,0,0,0,0]
[null,null,null,"x",null,null,null,null,null,null,null,null,null,null,null,null,null,null,null,null,null,null,{"$f":"IF(C326&E326=\"\",\"\",IF(C326=E326,1,IF(C326>E326,3,IF(C326<E326,0))))","v":""},{"$f":"IF(C326&E326=\"\",\"\",IF(E326=C326,1,IF(C326<E326,3,IF(C326>E326,0))))","v":""},{"$f":"IF(C326&E326=\"\",\"\",IF(C326&E326<>\"\",1))","v":""},{"$f":"IF(C326&E326=\"\",\"\",IF(C326&E326<>\"\",1))","v":""},{"$f":"IF(C326=\"\",\"\",C326)","v":""},{"$f":"IF(E326=\"\",\"\",E326)","v":""},0,0,0,0,0,0]
[null,null,null,"x",null,null,null,null,null,null,null,null,null,null,null,null,null,null,null,null,null,null,"","","","","","",{"$f":"IF(W327=3,1,0)","v":0},{"$f":"IF(X327=3,1,0)","v":0},{"$f":"IF(W327=1,1,0)","v":0},{"$f":"IF(X327=1,1,0)","v":0},{"$f":"IF(W327=0,1,0)","v":0},{"$f":"IF(X327=0,1,0)","v":0}]
[null,null,null,"x",null,null,null,null,null,null,null,null,null,null,null,null,null,null,null,null,null,null,"","","","","","",0,0,0,0,0,0]
[null,null,null,"x",null,null,null,null,null,null,null,null,null,null,null,null,null,null,null,null,null,null,"","","","","","",0,0,0,0,0,0]
["28 ª Rodada",null,null,null,null,null,null,null,null,null,null,null,null,null,null,null,null,null,null,null,null,null,"","","","","","",0,0,0,0,0,0]
["Data/Horário",null,null,null,null,null,"Local",null,null,null,null,null,null,null,null,null,null,null,null,null,null,null,"","","","","","",0,0,0,0,0,0]
[null,null,null,"x",null,null,null,null,null,null,null,null,null,null,null,null,null,null,null,null,null,null,"","","","","","",0,0,0,0,0,0]
[null,null,null,"x",null,null,null,null,null,null,null,null,null,null,null,null,null,null,null,null,null,null,"","","","","","",0,0,0,0,0,0]
[null,null,null,"x",null,null,null,null,null,null,null,null,null,null,null,null,null,null,null,null,null,null,"","","","","","",0,0,0,0,0,0]
[null,null,null,"x",null,null,null,null,null,null,null,null,null,null,null,null,null,null,null,null,null,null,"","","","","","",0,0,0,0,0,0]
[null,null,null,"x",null,null,null,null,null,null,null,null,null,null,null,null,null,null,null,null,null,null,"","","","","","",0,0,0,0,0,0]
[null,null,null,"x",null,null,null,null,null,null,null,null,null,null,null,null,null,null,null,null,null,null,"","","","","","",0,0,0,0,0,0]
[null,null,null,"x",null,null,null,null,null,null,null,null,null,null,null,null,null,null,null,null,null,null,"","","","","","",0,0,0,0,0,0]
[null,null,null,"x",null,null,null,null,null,null,null,null,null,null,null,null,null,null,null,null,null,null,"","","","","","",0,0,0,0,0,0]
[null,null,null,"x",null,null,null,null,null,null,null,null,null,null,null,null,null,null,null,null,null,null,"","","","","","",0,0,0,0,0,0]
[null,null,null,"x",null,null,null,null,null,null,null,null,null,null,null,null,null,null,null,null,null,null,"","","","","","",0,0,0,0,0,0]
["29 ª Rodada",null,null,null,null,null,null,null,null,null,null,null,null,null,null,null,null,null,null,null,null,null,"","","","","","",0,0,0,0,0,0]
["Data/Horário",null,null,null,null,null,"Local",null,null,null,null,null,null,null,null,null,null,null,null,null,null,null,"","","","","","",0,0,0,0,0,0]
[null,null,null,"x",null,null,null,null,null,null,null,null,null,null,null,null,null,null,null,null,null,null,"","","","","","",0,0,0,0,0,0]
[null,null,null,"x",null,null,null,null,null,null,null,null,null,null,null,null,null,null,null,null,null,null,"","","","","","",0,0,0,0,0,0]
[null,null,null,"x",null,null,null,null,null,null,null,null,null,null,null,null,null,null,null,null,null,null,"","","","","","",0,0,0,0,0,0]
[null,null,null,"x",null,null,null,null,null,null,null,null,null,null,null,null,null,null,null,null,null,null,"","","","","","",0,0,0,0,0,0]
[null,null,null,"x",null,null,null,null,null,null,null,null,null,null,null,null,null,null,null,null,null,null,"","","","","","",0,0,0,0,0,0]
[null,null,null,"x",null,null,null,null,null,null,null,null,null,null,null,null,null,null,null,null,null,null,"","","","","","",0,0,0,0,0,0]
[null,null,null,"x",null,null,null,null,null,null,null,null,null,null,null,null,null,null,null,null,null,null,"","","","","","",0,0,0,0,0,0]
[null,null,null,"x",null,null,null,null,null,null,null,null,null,null,null,null,null,null,null,null,null,null,"","","","","","",0,0,0,0,0,0]
[null,null,null,"x",null,null,null,null,null,null,null,null,null,null,null,null,null,null,null,null,null,null,"","","","","","",0,0,0,0,0,0]
[null,null,null,"x",null,null,null,null,null,null,null,null,null,null,null,null,null,null,null,null,null,null,"","","","","","",0,0,0,0,0,0]
["30 ª Rodada",null,null,null,null,null,null,null,null,null,null,null,null,null,null,null,null,null,null,null,null,null,"","","","","","",0,0,0,0,0,0]
["Data/Horário",null,null,null,null,null,"Local",null,null,null,null,null,null,null,null,null,null,null,null,null,null,null,"","","","","","",0,0,0,0,0,0]
[null,null,null,"x",null,null,null,null,null,null,null,null,null,null,null,null,null,null,null,null,null,null,"","","","","","",0,0,0,0,0,0]
[null,null,null,"x",null,null,null,null,null,null,null,null,null,null,null,null,null,null,null,null,null,null,"","","","","","",0,0,0,0,0,0]
[null,null,null,"x",null,null,null,null,null,null,null,null,null,null,null,null,null,null,null,null,null,null,"","","","","","",0,0,0,0,0,0]
[null,null,null,"x",null,null,null,null,null,null,null,null,null,null,null,null,null,null,null,null,null,null,"","","","","","",0,0,0,0,0,0]
[null,null,null,"x",null,null,null,null,null,null,null,null,null,null,null,null,null,null,null,null,null,null,"","","","","","",0,0,0,0,0,0]
[null,null,null,"x",null,null,null,null,null,null,null,null,null,null,null,null,null,null,null,null,null,null,"","","","","","",0,0,0,0,0,0]
[null,null,null,"x",null,null,null,null,null,null,null,null,null,null,null,null,null,null,null,null,null,null,"","","","","","",0,0,0,0,0,0]
[null,null,null,"x",null,null,null,null,null,null,null,null,null,null,null,null,null,null,null,null,null,null,"","","","","","",0,0,0,0,0,0]
[null,null,null,"x",null,null,null,null,null,null,null,null,null,null,null,null,null,null,null,null,null,null,"","","","","","",0,0,0,0,0,0]
[null,null,null,"x",null,null,null,null,null,null,null,null,null,null,null,null,null,null,null,null,null,null,"","","","","","",0,0,0,0,0,0]
["31 ª Rodada",null,null,null,null,null,null,null,null,null,null,null,null,null,null,null,null,null,null,null,null,null,"","","","","","",0,0,0,0,0,0]
["Data/Horário",null,null,null,null,null,"Local",null,null,null,null,null,null,null,null,null,null,null,null,null,null,null,"","","","","","",0,0,0,0,0,0]
[null,null,null,"x",null,null,null,null,null,null,null,null,null,null,null,null,null,null,null,null,null,null,"","","","","","",0,0,0,0,0,0]
[null,null,null,"x",null,null,null,null,null,null,null,null,null,null,null,null,null,null,null,null,null,null,"","","","","","",0,0,0,0,0,0]
[null,null,null,"x",null,null,null,null,null,null,null,null,null,null,null,null,null,null,null,null,null,null,"","","","","","",0,0,0,0,0,0]
[null,null,null,"x",null,null,null,null,null,null,null,null,null,null,null,null,null,null,null,null,null,null,"","","","","","",0,0,0,0,0,0]
[null,null,null,"x",null,null,null,null,null,null,null,null,null,null,null,null,null,null,null,null,null,null,"","","","","","",0,0,0,0,0,0]
[null,null,null,"x",null,null,null,null,null,null,null,null,null,null,null,null,null,null,null,null,null,null,"","","","","","",0,0,0,0,0,0]
[null,null,null,"x",null,null,null,null,null,null,null,null,null,null,null,null,null,null,null,null,null,null,"","","","","","",0,0,0,0,0,0]
[null,null,null,"x",null,null,null,null,null,null,null,null,null,null,null,null,null,null,null,null,null,null,"","","","","","",0,0,0,0,0,0]
[null,null,null,"x",null,null,null,null,null,null,null,null,null,null,null,null,null,null,null,null,null,null,"","","","","","",0,0,0,0,0,0]
[null,null,null,"x",null,null,null,null,null,null,null,null,null,null,null,null,null,null,null,null,null,null,"","","","","","",0,0,0,0,0,0]
["32 ª Rodada",null,null,null,null,null,null,null,null,null,null,null,null,null,null,null,null,null,null,null,null,null,"","","","","","",0,0,0,0,0,0]
["Data/Horário",null,null,null,null,null,"Local",null,null,null,null,null,null,null,null,null,null,null,null,null,null,null,"","","","","","",0,0,0,0,0,0]
[null,null,null,"x",null,null,null,null,null,null,null,null,null,null,null,null,null,null,null,null,null,null,"","","","","","",0,0,0,0,0,0]
[null,null,null,"x",null,null,null,null,null,null,null,null,null,null,null,null,null,null,null,null,null,null,"","","","","","",0,0,0,0,0,0]
[null,null,null,"x",null,null,null,null,null,null,null,null,null,null,null,null,null,null,null,null,null,null,"","","","","","",0,0,0,0,0,0]
[null,null,null,"x",null,null,null,null,null,null,null,null,null,null,null,null,null,null,null,null,null,null,"","","","","","",0,0,0,0,0,0]
[null,null,null,"x",null,null,null,null,null,null,null,null,null,null,null,null,null,null,null,null,null,null,"","","","","","",0,0,0,0,0,0]
[null,null,null,"x",null,null,null,null,null,null,null,null,null,null,null,null,null,null,null,null,null,null,"","","","","","",0,0,0,0,0,0]
[null,null,null,"x",null,null,null,null,null,null,null,null,null,null,null,null,null,null,null,null,null,null,"","","","","","",0,0,0,0,0,0]
[null,null,null,"x",null,null,null,null,null,null,null,null,null,null,null,null,null,null,null,null,null,null,"","","","","","",0,0,0,0,0,0]
[null,null,null,"x",null,null,null,null,null,null,null,null,null,null,null,null,null,null,null,null,null,null,"","","","","","",0,0,0,0,0,0]
[null,null,null,"x",null,null,null,null,null,null,null,null,null,null,null,null,null,null,null,null,null,null,"","","","","","",0,0,0,0,0,0]
["33 ª Rodada",null,null,null,null,null,null,null,null,null,null,null,null,null,null,null,null,null,null,null,null,null,{"$f":"IF(C390&E390=\"\",\"\",IF(C390=E390,1,IF(C390>E390,3,IF(C390<E390,0))))","v":""},{"$f":"IF(C390&E390=\"\",\"\",IF(E390=C390,1,IF(C390<E390,3,IF(C390>E390,0))))","v":""},{"$f":"IF(C390&E390=\"\",\"\",IF(C390&E390<>\"\",1))","v":""},{"$f":"IF(C390&E390=\"\",\"\",IF(C390&E390<>\"\",1))","v":""},{"$f":"IF(C390=\"\",\"\",C390)","v":""},{"$f":"IF(E390=\"\",\"\",E390)","v":""},0,0,0,0,0,0]
["Data/Horário",null,null,null,null,null,"Local",null,null,null,null,null,null,null,null,null,null,null,null,null,null,null,"","","","","","",{"$f":"IF(W391=3,1,0)","v":0},{"$f":"IF(X391=3,1,0)","v":0},{"$f":"IF(W391=1,1,0)","v":0},{"$f":"IF(X391=1,1,0)","v":0},{"$f":"IF(W391=0,1,0)","v":0},{"$f":"IF(X391=0,1,0)","v":0}]
[null,null,null,"x",null,null,null,null,null,null,null,null,null,null,null,null,null,null,null,null,null,null,"","","","","","",0,0,0,0,0,0]
[null,null,null,"x",null,null,null,null,null,null,null,null,null,null,null,null,null,null,null,null,null,null,"","","","","","",0,0,0,0,0,0]
[null,null,null,"x",null,null,null,null,null,null,null,null,null,null,null,null,null,null,null,null,null,null,"","","","","","",0,0,0,0,0,0]
[null,null,null,"x",null,null,null,null,null,null,null,null,null,null,null,null,null,null,null,null,null,null,"","","","","","",0,0,0,0,0,0]
[null,null,null,"x",null,null,null,null,null,null,null,null,null,null,null,null,null,null,null,null,null,null,"","","","","","",0,0,0,0,0,0]
[null,null,null,"x",null,null,null,null,null,null,null,null,null,null,null,null,null,null,null,null,null,null,"","","","","","",0,0,0,0,0,0]
[null,null,null,"x",null,null,null,null,null,null,null,null,null,null,null,null,null,null,null,null,null,null,"","","","","","",0,0,0,0,0,0]
[null,null,null,"x",null,null,null,null,null,null,null,null,null,null,null,null,null,null,null,null,null,null,"","","","","","",0,0,0,0,0,0]
[null,null,null,"x",null,null,null,null,null,null,null,null,null,null,null,null,null,null,null,null,null,null,"","","","","","",0,0,0,0,0,0]
[null,null,null,"x",null,null,null,null,null,null,null,null,null,null,null,null,null,null,null,null,null,null,"","","","","","",0,0,0,0,0,0]
["34 ª Rodada",null,null,null,null,null,null,null,null,null,null,null,null,null,null,null,null,null,null,null,null,null,"","","","","","",0,0,0,0,0,0]
["Data/Horário",null,null,null,null,null,"Local",null,null,null,null,null,null,null,null,null,null,null,null,null,null,null,"","","","","","",0,0,0,0,0,0]
[null,null,null,"x",null,null,null,null,null,null,null,null,null,null,null,null,null,null,null,null,null,null,"","","","","","",0,0,0,0,0,0]
[null,null,null,"x",null,null,null,null,null,null,null,null,null,null,null,null,null,null,null,null,null,null,"","","","","","",0,0,0,0,0,0]
[null,null,null,"x",null,null,null,null,null,null,null,null,null,null,null,null,null,null,null,null,null,null,"","","","","","",0,0,0,0,0,0]
[null,null,null,"x",null,null,null,null,null,null,null,null,null,null,null,null,null,null,null,null,null,null,"","","","","","",0,0,0,0,0,0]
[null,null,null,"x",null,null,null,null,null,null,null,null,null,null,null,null,null,null,null,null,null,null,"","","","","","",0,0,0,0,0,0]
[null,null,null,"x",null,null,null,null,null,null,null,null,null,null,null,null,null,null,null,null,null,null,"","","","","","",0,0,0,0,0,0]
[null,null,null,"x",null,null,null,null,null,null,null,null,null,null,null,null,null,null,null,null,null,null,"","","","","","",0,0,0,0,0,0]
[null,null,null,"x",null,null,null,null,null,null,null,null,null,null,null,null,null,null,null,null,null,null,"","","","","","",0,0,0,0,0,0]
[null,null,null,"x",null,null,null,null,null,null,null,null,null,null,null,null,null,null,null,null,null,null,"","","","","","",0,0,0,0,0,0]
[null,null,null,"x",null,null,null,null,null,null,null,null,null,null,null,null,null,null,null,null,null,null,"","","","","","",0,0,0,0,0,0]
["35 ª Rodada",null,null,null,null,null,null,null,null,null,null,null,null,null,null,null,null,null,null,null,null,null,"","","","","","",0,0,0,0,0,0]
["Data/Horário",null,null,null,null,null,"Local",null,null,null,null,null,null,null,null,null,null,null,null,null,null,null,"","","","","","",0,0,0,0,0,0]
[null,null,null,"x",null,null,null,null,null,null,null,null,null,null,null,null,null,null,null,null,null,null,"","","","","","",0,0,0,0,0,0]
[null,null,null,"x",null,null,null,null,null,null,null,null,null,null,null,null,null,null,null,null,null,null,"","","","","","",0,0,0,0,0,0]
[null,null,null,"x",null,null,null,null,null,null,null,null,null,null,null,null,null,null,null,null,null,null,"","","","","","",0,0,0,0,0,0]
[null,null,null,"x",null,null,null,null,null,null,null,null,null,null,null,null,null,null,null,null,null,null,"","","","","","",0,0,0,0,0,0]
[null,null,null,"x",null,null,null,null,null,null,null,null,null,null,null,null,null,null,null,null,null,null,"","","","","","",0,0,0,0,0,0]
[null,null,null,"x",null,null,null,null,null,null,null,null,null,null,null,null,null,null,null,null,null,null,"","","","","","",0,0,0,0,0,0]
[null,null,null,"x",null,null,null,null,null,null,null,null,null,null,null,null,null,null,null,null,null,null,"","","","","","",0,0,0,0,0,0]
[null,null,null,"x",null,null,null,null,null,null,null,null,null,null,null,null,null,null,null,null,null,null,"","","","","","",0,0,0,0,0,0]
[null,null,null,"x",null,null,null,null,null,null,null,null,null,null,null,null,null,null,null,null,null,null,"","","","","","",0,0,0,0,0,0]
[null,null,null,"x",null,null,null,null,null,null,null,null,null,null,null,null,null,null,null,null,null,null,"","","","","","",0,0,0,0,0,0]
["36 ª Rodada",null,null,null,null,null,null,null,null,null,null,null,null,null,null,null,null,null,null,null,null,null,"","","","","","",0,0,0,0,0,0]
["Data/Horário",null,null,null,null,null,"Local",null,null,null,null,null,null,null,null,null,null,null,null,null,null,null,"","","","","","",0,0,0,0,0,0]
[null,null,null,"x",null,null,null,null,null,null,null,null,null,null,null,null,null,null,null,null,null,null,"","","","","","",0,0,0,0,0,0]
[null,null,null,"x",null,null,null,null,null,null,null,null,null,null,null,null,null,null,null,null,null,null,"","","","","","",0,0,0,0,0,0]
[null,null,null,"x",null,null,null,null,null,null,null,null,null,null,null,null,null,null,null,null,null,null,"","","","","","",0,0,0,0,0,0]
[null,null,null,"x",null,null,null,null,null,null,null,null,null,null,null,null,null,null,null,null,null,null,"","","","","","",0,0,0,0,0,0]
[null,null,null,"x",null,null,null,null,null,null,null,null,null,null,null,null,null,null,null,null,null,null,"","","","","","",0,0,0,0,0,0]
[null,null,null,"x",null,null,null,null,null,null,null,null,null,null,null,null,null,null,null,null,null,null,"","","","","","",0,0,0,0,0,0]
[null,null,null,"x",null,null,null,null,null,null,null,null,null,null,null,null,null,null,null,null,null,null,"","","","","","",0,0,0,0,0,0]
[null,null,null,"x",null,null,null,null,null,null,null,null,null,null,null,null,null,null,null,null,null,null,"","","","","","",0,0,0,0,0,0]
[null,null,null,"x",null,null,null,null,null,null,null,null,null,null,null,null,null,null,null,null,null,null,"","","","","","",0,0,0,0,0,0]
[null,null,null,"x",null,null,null,null,null,null,null,null,null,null,null,null,null,null,null,null,null,null,"","","","","","",0,0,0,0,0,0]
["37 ª Rodada",null,null,null,null,null,null,null,null,null,null,null,null,null,null,null,null,null,null,null,null,null,"","","","","","",0,0,0,0,0,0]
["Data/Horário",null,null,null,null,null,"Local",null,null,null,null,null,null,null,null,null,null,null,null,null,null,null,"","","","","","",0,0,0,0,0,0]
[null,null,null,"x",null,null,null,null,null,null,null,null,null,null,null,null,null,null,null,null,null,null,"","","","","","",0,0,0,0,0,0]
[null,null,null,"x",null,null,null,null,null,null,null,null,null,null,null,null,null,null,null,null,null,null,"","","","","","",0,0,0,0,0,0]
[null,null,null,"x",null,null,null,null,null,null,null,null,null,null,null,null,null,null,null,null,null,null,"","","","","","",0,0,0,0,0,0]
[null,null,null,"x",null,null,null,null,null,null,null,null,null,null,null,null,null,null,null,null,null,null,"","","","","","",0,0,0,0,0,0]
[null,null,null,"x",null,null,null,null,null,null,null,null,null,null,null,null,null,null,null,null,null,null,"","","","","","",0,0,0,0,0,0]
[null,null,null,"x",null,null,null,null,null,null,null,null,null,null,null,null,null,null,null,null,null,null,"","","","","","",0,0,0,0,0,0]
[null,null,null,"x",null,null,null,null,null,null,null,null,null,null,null,null,null,null,null,null,null,null,"","","","","","",0,0,0,0,0,0]
[null,null,null,"x",null,null,null,null,null,null,null,null,null,null,null,null,null,null,null,null,null,null,"","","","","","",0,0,0,0,0,0]
[null,null,null,"x",null,null,null,null,null,null,null,null,null,null,null,null,null,null,null,null,null,null,"","","","","","",0,0,0,0,0,0]
[null,null,null,"x",null,null,null,null,null,null,null,null,null,null,null,null,null,null,null,null,null,null,"","","","","","",0,0,0,0,0,0]
["38 ª Rodada",null,null,null,null,null,null,null,null,null,null,null,null,null,null,null,null,null,null,null,null,null,"","","","","","",0,0,0,0,0,0]
["Data/Horário",null,null,null,null,null,"Local",null,null,null,null,null,null,null,null,null,null,null,null,null,null,null,"","","","","","",0,0,0,0,0,0]
[null,null,null,"x",null,null,null,null,null,null,null,null,null,null,null,null,null,null,null,null,null,null,"","","","","","",0,0,0,0,0,0]
[null,null,null,"x",null,null,null,null,null,null,null,null,null,null,null,null,null,null,null,null,null,null,"","","","","","",0,0,0,0,0,0]
[null,null,null,"x",null,null,null,null,null,null,null,null,null,null,null,null,null,null,null,null,null,null,{"$f":"IF(C454&E454=\"\",\"\",IF(C454=E454,1,IF(C454>E454,3,IF(C454<E454,0))))","v":""},{"$f":"IF(C454&E454=\"\",\"\",IF(E454=C454,1,IF(C454<E454,3,IF(C454>E454,0))))","v":""},{"$f":"IF(C454&E454=\"\",\"\",IF(C454&E454<>\"\",1))","v":""},{"$f":"IF(C454&E454=\"\",\"\",IF(C454&E454<>\"\",1))","v":""},{"$f":"IF(C454=\"\",\"\",C454)","v":""},{"$f":"IF(E454=\"\",\"\",E454)","v":""},0,0,0,0,0,0]
[null,null,null,"x",null,null,null,null,null,null,null,null,null,null,null,null,null,null,null,null,null,null,"","","","","","",{"$f":"IF(W455=3,1,0)","v":0},{"$f":"IF(X455=3,1,0)","v":0},{"$f":"IF(W455=1,1,0)","v":0},{"$f":"IF(X455=1,1,0)","v":0},{"$f":"IF(W455=0,1,0)","v":0},{"$f":"IF(X455=0,1,0)","v":0}]
[null,null,null,"x",null,null,null,null,null,null,null,null,null,null,null,null,null,null,null,null,null,null,"","","","","","",0,0,0,0,0,0]
[null,null,null,"x",null,null,null,null,null,null,null,null,null,null,null,null,null,null,null,null,null,null,"","","","","","",0,0,0,0,0,0]
[null,null,null,"x",null,null,null,null,null,null,null,null,null,null,null,null,null,null,null,null,null,null,"","","","","","",0,0,0,0,0,0]
[null,null,null,"x",null,null,null,null,null,null,null,null,null,null,null,null,null,null,null,null,null,null,"","","","","","",0,0,0,0,0,0]
[null,null,null,"x",null,null,null,null,null,null,null,null,null,null,null,null,null,null,null,null,null,null,"","","","","","",0,0,0,0,0,0]
[null,null,null,"x",null,null,null,null,null,null,null,null,null,null,null,null,null,null,null,null,null,null,"","","","","","",0,0,0,0,0,0]
[null,null,null,null,null,null,null,null,null,null,null,null,null,null,null,null,null,null,null,null,null,null,"","","","","","",0,0,0,0,0,0]
[null,null,null,null,null,null,null,null,null,null,null,null,null,null,null,null,null,null,null,null,null,null,"","","","","","",0,0,0,0,0,0]
[null,null,null,null,null,null,null,null,null,null,null,null,null,null,null,null,null,null,null,null,null,null,"","","","","","",0,0,0,0,0,0]
[null,null,null,null,null,null,null,null,null,null,null,null,null,null,null,null,null,null,null,null,null,null,"","","","","","",0,0,0,0,0,0]
[null,null,null,null,null,null,null,null,null,null,null,null,null,null,null,null,null,null,null,null,null,null,"","","","","","",0,0,0,0,0,0]
[null,null,null,null,null,null,null,null,null,null,null,null,null,null,null,null,null,null,null,null,null,null,"","","","","","",0,0,0,0,0,0]
[null,null,null,null,null,null,null,null,null,null,null,null,null,null,null,null,null,null,null,null,null,null,"","","","","","",0,0,0,0,0,0]
[null,null,null,null,null,null,null,null,null,null,null,null,null,null,null,null,null,null,null,null,null,null,"","","","","","",0,0,0,0,0,0]
[null,null,null,null,null,null,null,null,null,null,null,null,null,null,null,null,null,null,null,null,null,null,"","","","","","",0,0,0,0,0,0]
[null,null,null,null,null,null,null,null,null,null,null,null,null,null,null,null,null,null,null,null,null,null,"","","","","","",0,0,0,0,0,0]
[null,null,null,null,null,null,null,null,null,null,null,null,null,null,null,null,null,null,null,null,null,null,"","","","","","",0,0,0,0,0,0]
[null,null,null,null,null,null,null,null,null,null,null,null,null,null,null,null,null,null,null,null,null,null,"","","","","","",0,0,0,0,0,0]
[null,null,null,null,null,null,null,null,null,null,null,null,null,null,null,null,null,null,null,null,null,null,"","","","","","",0,0,0,0,0,0]
[null,null,null,null,null,null,null,null,null,null,null,null,null,null,null,null,null,null,null,null,null,null,"","","","","","",0,0,0,0,0,0]
[null,null,null,null,null,null,null,null,null,null,null,null,null,null,null,null,null,null,null,null,null,null,"","","","","","",0,0,0,0,0,0]
[null,null,null,null,null,null,null,null,null,null,null,null,null,null,null,null,null,null,null,null,null,null,"","","","","","",0,0,0,0,0,0]
[null,null,null,null,null,null,null,null,null,null,null,null,null,null,null,null,null,null,null,null,null,null,"","","","","","",0,0,0,0,0,0]
[null,null,null,null,null,null,null,null,null,null,null,null,null,null,null,null,null,null,null,null,null,null,"","","","","","",0,0,0,0,0,0]
[null,null,null,null,null,null,null,null,null,null,null,null,null,null,null,null,null,null,null,null,null,null,"","","","","","",0,0,0,0,0,0]
[null,null,null,null,null,null,null,null,null,null,null,null,null,null,null,null,null,null,null,null,null,null,"","","","","","",0,0,0,0,0,0]
[null,null,null,null,null,null,null,null,null,null,null,null,null,null,null,null,null,null,null,null,null,null,"","","","","","",0,0,0,0,0,0]
[null,null,null,null,null,null,null,null,null,null,null,null,null,null,null,null,null,null,null,null,null,null,"","","","","","",0,0,0,0,0,0]
[null,null,null,null,null,null,null,null,null,null,null,null,null,null,null,null,null,null,null,null,null,null,"","","","","","",0,0,0,0,0,0]
[null,null,null,null,null,null,null,null,null,null,null,null,null,null,null,null,null,null,null,null,null,null,"","","","","","",0,0,0,0,0,0]
[null,null,null,null,null,null,null,null,null,null,null,null,null,null,null,null,null,null,null,null,null,null,"","","","","","",0,0,0,0,0,0]
[null,null,null,null,null,null,null,null,null,null,null,null,null,null,null,null,null,null,null,null,null,null,"","","","","","",0,0,0,0,0,0]
[null,null,null,null,null,null,null,null,null,null,null,null,null,null,null,null,null,null,null,null,null,null,"","","","","","",0,0,0,0,0,0]
[null,null,null,null,null,null,null,null,null,null,null,null,null,null,null,null,null,null,null,null,null,null,"","","","","","",0,0,0,0,0,0]
[null,null,null,null,null,null,null,null,null,null,null,null,null,null,null,null,null,null,null,null,null,null,"","","","","","",0,0,0,0,0,0]
[null,null,null,null,null,null,null,null,null,null,null,null,null,null,null,null,null,null,null,null,null,null,"","","","","","",0,0,0,0,0,0]
[null,null,null,null,null,null,null,null,null,null,null,null,null,null,null,null,null,null,null,null,null,null,"","","","","","",0,0,0,0,0,0]
[null,null,null,null,null,null,null,null,null,null,null,null,null,null,null,null,null,null,null,null,null,null,"","","","","","",0,0,0,0,0,0]
[null,null,null,null,null,null,null,null,null,null,null,null,null,null,null,null,null,null,null,null,null,null,"","","","","","",0,0,0,0,0,0]
[null,null,null,null,null,null,null,null,null,null,null,null,null,null,null,null,null,null,null,null,null,null,"","","","","","",0,0,0,0,0,0]
[null,null,null,null,null,null,null,null,null,null,null,null,null,null,null,null,null,null,null,null,null,null,"","","","","","",0,0,0,0,0,0]
[null,null,null,null,null,null,null,null,null,null,null,null,null,null,null,null,null,null,null,null,null,null,"","","","","","",0,0,0,0,0,0]
[null,null,null,null,null,null,null,null,null,null,null,null,null,null,null,null,null,null,null,null,null,null,"","","","","","",0,0,0,0,0,0]
[null,null,null,null,null,null,null,null,null,null,null,null,null,null,null,null,null,null,null,null,null,null,"","","","","","",0,0,0,0,0,0]
[null,null,null,null,null,null,null,null,null,null,null,null,null,null,null,null,null,null,null,null,null,null,"","","","","","",{"$f":"IF(W500=3,1,0)","v":0},{"$f":"IF(X500=3,1,0)","v":0},{"$f":"IF(W500=1,1,0)","v":0},{"$f":"IF(X500=1,1,0)","v":0},{"$f":"IF(W500=0,1,0)","v":0},0]
[null,null,null,null,null,null,null,null,null,null,null,null,null,null,null,null,null,null,null,null,null,null,"","","","","","",{"$f":"IF(W501=3,1,0)","v":0},{"$f":"IF(X501=3,1,0)","v":0},{"$f":"IF(W501=1,1,0)","v":0},{"$f":"IF(X501=1,1,0)","v":0},{"$f":"IF(W501=0,1,0)","v":0},{"$f":"IF(X501=0,1,0)","v":0}]
[null,null,null,null,null,null,null,null,null,null,null,null,null,null,null,null,null,null,null,null,null,null,"","","","","","",0,0,0,0,0,0]
[null,null,null,null,null,null,null,null,null,null,null,null,null,null,null,null,null,null,null,null,null,null,"","","","","","",0,0,0,0,0,0]
[null,null,null,null,null,null,null,null,null,null,null,null,null,null,null,null,null,null,null,null,null,null,"","","","","","",0,0,0,0,0,0]
[null,null,null,null,null,null,null,null,null,null,null,null,null,null,null,null,null,null,null,null,null,null,"","","","","","",0,0,0,0,0,0]
[null,null,null,null,null,null,null,null,null,null,null,null,null,null,null,null,null,null,null,null,null,null,"","","","","","",0,0,0,0,0,0]
[null,null,null,null,null,null,null,null,null,null,null,null,null,null,null,null,null,null,null,null,null,null,"","","","","","",0,0,0,0,0,0]
[null,null,null,null,null,null,null,null,null,null,null,null,null,null,null,null,null,null,null,null,null,null,"","","","","","",0,0,0,0,0,0]
[null,null,null,null,null,null,null,null,null,null,null,null,null,null,null,null,null,null,null,null,null,null,"","","","","","",0,0,0,0,0,0]
[null,null,null,null,null,null,null,null,null,null,null,null,null,null,null,null,null,null,null,null,null,null,"","","","","","",0,0,0,0,0,0]
[null,null,null,null,null,null,null,null,null,null,null,null,null,null,null,null,null,null,null,null,null,null,"","","","","","",0,0,0,0,0,0]
[null,null,null,null,null,null,null,null,null,null,null,null,null,null,null,null,null,null,null,null,null,null,"","","","","","",0,0,0,0,0,0]
[null,null,null,null,null,null,null,null,null,null,null,null,null,null,null,null,null,null,null,null,null,null,"","","","","","",0,0,0,0,0,0]
[null,null,null,null,null,null,null,null,null,null,null,null,null,null,null,null,null,null,null,null,null,null,"","","","","","",0,0,0,0,0,0]
[null,null,null,null,null,null,null,null,null,null,null,null,null,null,null,null,null,null,null,null,null,null,"","","","","","",0,0,0,0,0,0]
[null,null,null,null,null,null,null,null,null,null,null,null,null,null,null,null,null,null,null,null,null,null,"","","","","","",0,0,0,0,0,0]
[null,null,null,null,null,null,null,null,null,null,null,null,null,null,null,null,null,null,null,null,null,null,"","","","","","",0,0,0,0,0,0]
[null,null,null,null,null,null,null,null,null,null,null,null,null,null,null,null,null,null,null,null,null,null,{"$f":"IF(C518&E518=\"\",\"\",IF(C518=E518,1,IF(C518>E518,3,IF(C518<E518,0))))","v":""},{"$f":"IF(C518&E518=\"\",\"\",IF(E518=C518,1,IF(C518<E518,3,IF(C518>E518,0))))","v":""},{"$f":"IF(C518&E518=\"\",\"\",IF(C518&E518<>\"\",1))","v":""},{"$f":"IF(C518&E518=\"\",\"\",IF(C518&E518<>\"\",1))","v":""},{"$f":"IF(C518=\"\",\"\",C518)","v":""},{"$f":"IF(E518=\"\",\"\",E518)","v":""},0,0,0,0,0,0]
[null,null,null,null,null,null,null,null,null,null,null,null,null,null,null,null,null,null,null,null,null,null,"","","","","","",0,0,0,0,0,0]
[null,null,null,null,null,null,null,null,null,null,null,null,null,null,null,null,null,null,null,null,null,null,"","","","","","",0,0,0,0,0,0]
[null,null,null,null,null,null,null,null,null,null,null,null,null,null,null,null,null,null,null,null,null,null,"","","","","","",0,0,0,0,0,0]
[null,null,null,null,null,null,null,null,null,null,null,null,null,null,null,null,null,null,null,null,null,null,"","","","","","",0,0,0,0,0,0]
[null,null,null,null,null,null,null,null,null,null,null,null,null,null,null,null,null,null,null,null,null,null,"","","","","","",0,0,0,0,0,0]
[null,null,null,null,null,null,null,null,null,null,null,null,null,null,null,null,null,null,null,null,null,null,"","","","","","",0,0,0,0,0,0]
[null,null,null,null,null,null,null,null,null,null,null,null,null,null,null,null,null,null,null,null,null,null,"","","","","","",0,0,0,0,0,0]
[null,null,null,null,null,null,null,null,null,null,null,null,null,null,null,null,null,null,null,null,null,null,"","","","","","",0,0,0,0,0,0]
[null,null,null,null,null,null,null,null,null,null,null,null,null,null,null,null,null,null,null,null,null,null,"","","","","","",0,0,0,0,0,0]
[null,null,null,null,null,null,null,null,null,null,null,null,null,null,null,null,null,null,null,null,null,null,"","","","","","",0,0,0,0,0,0]
[null,null,null,null,null,null,null,null,null,null,null,null,null,null,null,null,null,null,null,null,null,null,"","","","","","",0,0,0,0,0,0]
[null,null,null,null,null,null,null,null,null,null,null,null,null,null,null,null,null,null,null,null,null,null,"","","","","","",0,0,0,0,0,0]
[null,null,null,null,null,null,null,null,null,null,null,null,null,null,null,null,null,null,null,null,null,null,"","","","","","",0,0,0,0,0,0]
[null,null,null,null,null,null,null,null,null,null,null,null,null,null,null,null,null,null,null,null,null,null,"","","","","","",0,0,0,0,0,0]
[null,null,null,null,null,null,null,null,null,null,null,null,null,null,null,null,null,null,null,null,null,null,{"$f":"IF(C533&E533=\"\",\"\",IF(C533=E533,1,IF(C533>E533,3,IF(C533<E533,0))))","v":""},{"$f":"IF(C533&E533=\"\",\"\",IF(E533=C533,1,IF(C533<E533,3,IF(C533>E533,0))))","v":""},{"$f":"IF(C533&E533=\"\",\"\",IF(C533&E533<>\"\",1))","v":""},{"$f":"IF(C533&E533=\"\",\"\",IF(C533&E533<>\"\",1))","v":""},{"$f":"IF(C533=\"\",\"\",C533)","v":""},{"$f":"IF(E533=\"\",\"\",E533)","v":""},{"$f":"IF(W533=3,1,0)","v":0},{"$f":"IF(X533=3,1,0)","v":0},{"$f":"IF(W533=1,1,0)","v":0},{"$f":"IF(X533=1,1,0)","v":0},{"$f":"IF(W533=0,1,0)","v":0},{"$f":"IF(X533=0,1,0)","v":0}]
[null,null,null,null,null,null,null,null,null,null,null,null,null,null,null,null,null,null,null,null,null,null,"","","","","","",0,0,0,0,0,0]
[null,null,null,null,null,null,null,null,null,null,null,null,null,null,null,null,null,null,null,null,null,null,"","","","","","",0,0,0,0,0,0]
[null,null,null,null,null,null,null,null,null,null,null,null,null,null,null,null,null,null,null,null,null,null,"","","","","","",0,0,0,0,0,0]
[null,null,null,null,null,null,null,null,null,null,null,null,null,null,null,null,null,null,null,null,null,null,"","","","","","",0,0,0,0,0,0]
[null,null,null,null,null,null,null,null,null,null,null,null,null,null,null,null,null,null,null,null,null,null,"","","","","","",0,0,0,0,0,0]
[null,null,null,null,null,null,null,null,null,null,null,null,null,null,null,null,null,null,null,null,null,null,"","","","","","",0,0,0,0,0,0]
[null,null,null,null,null,null,null,null,null,null,null,null,null,null,null,null,null,null,null,null,null,null,"","","","","","",0,0,0,0,0,0]
[null,null,null,null,null,null,null,null,null,null,null,null,null,null,null,null,null,null,null,null,null,null,"","","","","","",0,0,0,0,0,0]
[null,null,null,null,null,null,null,null,null,null,null,null,null,null,null,null,null,null,null,null,null,null,"","","","","","",0,0,0,0,0,0]
[null,null,null,null,null,null,null,null,null,null,null,null,null,null,null,null,null,null,null,null,null,null,"","","","","","",0,0,0,0,0,0]
[null,null,null,null,null,null,null,null,null,null,null,null,null,null,null,null,null,null,null,null,null,null,"","","","","","",0,0,0,0,0,0]
[null,null,null,null,null,null,null,null,null,null,null,null,null,null,null,null,null,null,null,null,null,null,"","","","","","",0,0,0,0,0,0]
[null,null,null,null,null,null,null,null,null,null,null,null,null,null,null,null,null,null,null,null,null,null,"","","","","","",0,0,0,0,0,0]
[null,null,null,null,null,null,null,null,null,null,null,null,null,null,null,null,null,null,null,null,null,null,"","","","","","",0,0,0,0,0,0]
[null,null,null,null,null,null,null,null,null,null,null,null,null,null,null,null,null,null,null,null,null,null,"","","","","","",0,0,0,0,0,0]
[null,null,null,null,null,null,null,null,null,null,null,null,null,null,null,null,null,null,null,null,null,null,"","","","","","",0,0,0,0,0,0]
[null,null,null,null,null,null,null,null,null,null,null,null,null,null,null,null,null,null,null,null,null,null,"","","","","","",0,0,0,0,0,0]
[null,null,null,null,null,null,null,null,null,null,null,null,null,null,null,null,null,null,null,null,null,null,"","","","","","",0,0,0,0,0,0]
[null,null,null,null,null,null,null,null,null,null,null,null,null,null,null,null,null,null,null,null,null,null,"","","","","","",0,0,0,0,0,0]
[null,null,null,null,null,null,null,null,null,null,null,null,null,null,null,null,null,null,null,null,null,null,"","","","","","",0,0,0,0,0,0]
[null,null,null,null,null,null,null,null,null,null,null,null,null,null,null,null,null,null,null,null,null,null,{"$f":"IF(C554&E554=\"\",\"\",IF(C554=E554,1,IF(C554>E554,3,IF(C554<E554,0))))","v":""},{"$f":"IF(C554&E554=\"\",\"\",IF(E554=C554,1,IF(C554<E554,3,IF(C554>E554,0))))","v":""},{"$f":"IF(C554&E554=\"\",\"\",IF(C554&E554<>\"\",1))","v":""},{"$f":"IF(C554&E554=\"\",\"\",IF(C554&E554<>\"\",1))","v":""},{"$f":"IF(C554=\"\",\"\",C554)","v":""},{"$f":"IF(E554=\"\",\"\",E554)","v":""},{"$f":"IF(W554=3,1,0)","v":0},{"$f":"IF(X554=3,1,0)","v":0},{"$f":"IF(W554=1,1,0)","v":0},{"$f":"IF(X554=1,1,0)","v":0},{"$f":"IF(W554=0,1,0)","v":0},{"$f":"IF(X554=0,1,0)","v":0}]
[null,null,null,null,null,null,null,null,null,null,null,null,null,null,null,null,null,null,null,null,null,null,"","","","","","",0,0,0,0,0,0]
[null,null,null,null,null,null,null,null,null,null,null,null,null,null,null,null,null,null,null,null,null,null,"","","","","","",0,0,0,0,0,0]
[null,null,null,null,null,null,null,null,null,null,null,null,null,null,null,null,null,null,null,null,null,null,"","","","","","",0,0,0,0,0,0]
[null,null,null,null,null,null,null,null,null,null,null,null,null,null,null,null,null,null,null,null,null,null,"","","","","","",0,0,0,0,0,0]
[null,null,null,null,null,null,null,null,null,null,null,null,null,null,null,null,null,null,null,null,null,null,"","","","","","",0,0,0,0,0,0]
[null,null,null,null,null,null,null,null,null,null,null,null,null,null,null,null,null,null,null,null,null,null,"","","","","","",0,0,0,0,0,0]
[null,null,null,null,null,null,null,null,null,null,null,null,null,null,null,null,null,null,null,null,null,null,"","","","","","",0,0,0,0,0,0]
[null,null,null,null,null,null,null,null,null,null,null,null,null,null,null,null,null,null,null,null,null,null,"","","","","","",0,0,0,0,0,0]
[null,null,null,null,null,null,null,null,null,null,null,null,null,null,null,null,null,null,null,null,null,null,"","","","","","",0,0,0,0,0,0]
[null,null,null,null,null,null,null,null,null,null,null,null,null,null,null,null,null,null,null,null,null,null,"","","","","","",0,0,0,0,0,0]
[null,null,null,null,null,null,null,null,null,null,null,null,null,null,null,null,null,null,null,null,null,null,"","","","","","",0,0,0,0,0,0]
[null,null,null,null,null,null,null,null,null,null,null,null,null,null,null,null,null,null,null,null,null,null,"","","","","","",0,0,0,0,0,0]
[null,null,null,null,null,null,null,null,null,null,null,null,null,null,null,null,null,null,null,null,null,null,"","","","","","",0,0,0,0,0,0]
[null,null,null,null,null,null,null,null,null,null,null,null,null,null,null,null,null,null,null,null,null,null,"","","","","","",0,0,0,0,0,0]
[null,null,null,null,null,null,null,null,null,null,null,null,null,null,null,null,null,null,null,null,null,null,"","","","","","",0,0,0,0,0,0]
[null,null,null,null,null,null,null,null,null,null,null,null,null,null,null,null,null,null,null,null,null,null,"","","","","","",0,0,0,0,0,0]
[null,null,null,null,null,null,null,null,null,null,null,null,null,null,null,null,null,null,null,null,null,null,"","","","","","",0,0,0,0,0,0]
[null,null,null,null,null,null,null,null,null,null,null,null,null,null,null,null,null,null,null,null,null,null,"","","","","","",0,0,0,0,0,0]
[null,null,null,null,null,null,null,null,null,null,null,null,null,null,null,null,null,null,null,null,null,null,"","","","","","",0,0,0,0,0,0]
[null,null,null,null,null,null,null,null,null,null,null,null,null,null,null,null,null,null,null,null,null,null,"","","","","","",0,0,0,0,0,0]
[null,null,null,null,null,null,null,null,null,null,null,null,null,null,null,null,null,null,null,null,null,null,"","","","","","",0,0,0,0,0,0]
[null,null,null,null,null,null,null,null,null,null,null,null,null,null,null,null,null,null,null,null,null,null,"","","","","","",0,0,0,0,0,0]
[null,null,null,null,null,null,null,null,null,null,null,null,null,null,null,null,null,null,null,null,null,null,"","","","","","",0,0,0,0,0,0]
[null,null,null,null,null,null,null,null,null,null,null,null,null,null,null,null,null,null,null,null,null,null,"","","","","","",0,0,0,0,0,0]
[null,null,null,null,null,null,null,null,null,null,null,null,null,null,null,null,null,null,null,null,null,null,"","","","","","",0,0,0,0,0,0]
[null,null,null,null,null,null,null,null,null,null,null,null,null,null,null,null,null,null,null,null,null,null,"","","","","","",0,0,0,0,0,0]
[null,null,null,null,null,null,null,null,null,null,null,null,null,null,null,null,null,null,null,null,null,null,"","","","","","",0,0,0,0,0,0]
[null,null,null,null,null,null,null,null,null,null,null,null,null,null,null,null,null,null,null,null,null,null,"","","","","","",0,0,0,0,0,0]
[null,null,null,null,null,null,null,null,null,null,null,null,null,null,null,null,null,null,null,null,null,null,"","","","","","",0,0,0,0,0,0]
[null,null,null,null,null,null,null,null,null,null,null,null,null,null,null,null,null,null,null,null,null,null,"","","","","","",0,0,0,0,0,0]
[null,null,null,null,null,null,null,null,null,null,null,null,null,null,null,null,null,null,null,null,null,null,"","","","","","",0,0,0,0,0,0]
[null,null,null,null,null,null,null,null,null,null,null,null,null,null,null,null,null,null,null,null,null,null,"","","","","","",0,0,0,0,0,0]
[null,null,null,null,null,null,null,null,null,null,null,null,null,null,null,null,null,null,null,null,null,null,"","","","","","",0,0,0,0,0,0]
[null,null,null,null,null,null,null,null,null,null,null,null,null,null,null,null,null,null,null,null,null,null,"","","","","","",0,0,0,0,0,0]
[null,null,null,null,null,null,null,null,null,null,null,null,null,null,null,null,null,null,null,null,null,null,"","","","","","",0,0,0,0,0,0]
[null,null,null,null,null,null,null,null,null,null,null,null,null,null,null,null,null,null,null,null,null,null,"","","","","","",0,0,0,0,0,0]
[null,null,null,null,null,null,null,null,null,null,null,null,null,null,null,null,null,null,null,null,null,null,"","","","","","",0,0,0,0,0,0]
[null,null,null,null,null,null,null,null,null,null,null,null,null,null,null,null,null,null,null,null,null,null,"","","","","","",0,0,0,0,0,0]
[null,null,null,null,null,null,null,null,null,null,null,null,null,null,null,null,null,null,null,null,null,null,"","","","","","",0,0,0,0,0,0]
[null,null,null,null,null,null,null,null,null,null,null,null,null,null,null,null,null,null,null,null,null,null,"","","","","","",0,0,0,0,0,0]
[null,null,null,null,null,null,null,null,null,null,null,null,null,null,null,null,null,null,null,null,null,null,"","","","","","",0,0,0,0,0,0]
[null,null,null,null,null,null,null,null,null,null,null,null,null,null,null,null,null,null,null,null,null,null,"","","","","","",0,0,0,0,0,0]
[null,null,null,null,null,null,null,null,null,null,null,null,null,null,null,null,null,null,null,null,null,null,"","","","","","",0,0,0,0,0,0]

{"sheet":"classificação","index":1,"n_rows":25,"n_cols":14,"rows_kept":25,"cut":false,"hidden":false,"merged":[]}
[null,null,"Classificação","Ponto","Jogo","Vitoria","Empate","derrota","Gol Marcado","Gol contra","Saldo",null,"Pontos Perdidos","Aproveitamento"]
[null,{"$f":"TABELA!I6","v":1},{"$f":"TABELA!J6","v":"São Paulo"},{"$f":"TABELA!K6","v":16},{"$f":"TABELA!L6","v":7},{"$f":"TABELA!M6","v":5},{"$f":"TABELA!N6","v":1},{"$f":"TABELA!O6","v":1},{"$f":"TABELA!P6","v":11},{"$f":"TABELA!Q6","v":4},{"$f":"TABELA!R6","v":7},null,{"$f":"TABELA!T6","v":5},{"$f":"TABELA!U6","v":0.76190476190476186}]
[null,{"$f":"TABELA!I7","v":2},{"$f":"TABELA!J7","v":"Atlético-PR"},{"$f":"TABELA!K7","v":15},{"$f":"TABELA!L7","v":7},{"$f":"TABELA!M7","v":5},{"$f":"TABELA!N7","v":0},{"$f":"TABELA!O7","v":2},{"$f":"TABELA!P7","v":10},{"$f":"TABELA!Q7","v":5},{"$f":"TABELA!R7","v":5},null,{"$f":"TABELA!T7","v":6},{"$f":"TABELA!U7","v":0.7142857142857143}]
[null,{"$f":"TABELA!I8","v":3},{"$f":"TABELA!J8","v":"Sport"},{"$f":"TABELA!K8","v":15},{"$f":"TABELA!L8","v":7},{"$f":"TABELA!M8","v":4},{"$f":"TABELA!N8","v":3},{"$f":"TABELA!O8","v":0},{"$f":"TABELA!P8","v":12},{"$f":"TABELA!Q8","v":6},{"$f":"TABELA!R8","v":6},null,{"$f":"TABELA!T8","v":6},{"$f":"TABELA!U8","v":0.7142857142857143}]
[null,{"$f":"TABELA!I9","v":4},{"$f":"TABELA!J9","v":"Corinthians"},{"$f":"TABELA!K9","v":13},{"$f":"TABELA!L9","v":7},{"$f":"TABELA!M9","v":4},{"$f":"TABELA!N9","v":1},{"$f":"TABELA!O9","v":2},{"$f":"TABELA!P9","v":6},{"$f":"TABELA!Q9","v":6},{"$f":"TABELA!R9","v":0},null,{"$f":"TABELA!T9","v":8},{"$f":"TABELA!U9","v":0.61904761904761907}]
[null,{"$f":"TABELA!I10","v":5},{"$f":"TABELA!J10","v":"Ponte Preta"},{"$f":"TABELA!K10","v":13},{"$f":"TABELA!L10","v":7},{"$f":"TABELA!M10","v":3},{"$f":"TABELA!N10","v":4},{"$f":"TABELA!O10","v":0},{"$f":"TABELA!P10","v":13},{"$f":"TABELA!Q10","v":7},{"$f":"TABELA!R10","v":6},null,{"$f":"TABELA!T10","v":8},{"$f":"TABELA!U10","v":0.61904761904761907}]
[null,{"$f":"TABELA!I11","v":6},{"$f":"TABELA!J11","v":"Atlético-MG"},{"$f":"TABELA!K11","v":11},{"$f":"TABELA!L11","v":7},{"$f":"TABELA!M11","v":3},{"$f":"TABELA!N11","v":2},{"$f":"TABELA!O11","v":2},{"$f":"TABELA!P11","v":16},{"$f":"TABELA!Q11","v":10},{"$f":"TABELA!R11","v":6},null,{"$f":"TABELA!T11","v":10},{"$f":"TABELA!U11","v":0.52380952380952384}]
[null,{"$f":"TABELA!I12","v":7},{"$f":"TABELA!J12","v":"Grêmio"},{"$f":"TABELA!K12","v":11},{"$f":"TABELA!L12","v":7},{"$f":"TABELA!M12","v":3},{"$f":"TABELA!N12","v":2},{"$f":"TABELA!O12","v":2},{"$f":"TABELA!P12","v":10},{"$f":"TABELA!Q12","v":10},{"$f":"TABELA!R12","v":0},null,{"$f":"TABELA!T12","v":10},{"$f":"TABELA!U12","v":0.52380952380952384}]
[null,{"$f":"TABELA!I13","v":8},{"$f":"TABELA!J13","v":"Fluminense"},{"$f":"TABELA!K13","v":11},{"$f":"TABELA!L13","v":7},{"$f":"TABELA!M13","v":3},{"$f":"TABELA!N13","v":2},{"$f":"TABELA!O13","v":2},{"$f":"TABELA!P13","v":8},{"$f":"TABELA!Q13","v":8},{"$f":"TABELA!R13","v":0},null,{"$f":"TABELA!T13","v":10},{"$f":"TABELA!U13","v":0.52380952380952384}]
[null,{"$f":"TABELA!I14","v":9},{"$f":"TABELA!J14","v":"Avaí"},{"$f":"TABELA!K14","v":11},{"$f":"TABELA!L14","v":7},{"$f":"TABELA!M14","v":3},{"$f":"TABELA!N14","v":2},{"$f":"TABELA!O14","v":2},{"$f":"TABELA!P14","v":8},{"$f":"TABELA!Q14","v":9},{"$f":"TABELA!R14","v":-1},null,{"$f":"TABELA!T14","v":10},{"$f":"TABELA!U14","v":0.52380952380952384}]
[null,{"$f":"TABELA!I15","v":10},{"$f":"TABELA!J15","v":"Cruzeiro"},{"$f":"TABELA!K15","v":10},{"$f":"TABELA!L15","v":7},{"$f":"TABELA!M15","v":3},{"$f":"TABELA!N15","v":1},{"$f":"TABELA!O15","v":3},{"$f":"TABELA!P15","v":9},{"$f":"TABELA!Q15","v":7},{"$f":"TABELA!R15","v":2},null,{"$f":"TABELA!T15","v":11},{"$f":"TABELA!U15","v":0.47619047619047616}]
[null,{"$f":"TABELA!I16","v":11},{"$f":"TABELA!J16","v":"Chapecoense"},{"$f":"TABELA!K16","v":9},{"$f":"TABELA!L16","v":7},{"$f":"TABELA!M16","v":3},{"$f":"TABELA!N16","v":0},{"$f":"TABELA!O16","v":4},{"$f":"TABELA!P16","v":6},{"$f":"TABELA!Q16","v":7},{"$f":"TABELA!R16","v":-1},null,{"$f":"TABELA!T16","v":12},{"$f":"TABELA!U16","v":0.42857142857142855}]
[null,{"$f":"TABELA!I17","v":12},{"$f":"TABELA!J17","v":"Palmeiras"},{"$f":"TABELA!K17","v":9},{"$f":"TABELA!L17","v":7},{"$f":"TABELA!M17","v":2},{"$f":"TABELA!N17","v":3},{"$f":"TABELA!O17","v":2},{"$f":"TABELA!P17","v":8},{"$f":"TABELA!Q17","v":7},{"$f":"TABELA!R17","v":1},null,{"$f":"TABELA!T17","v":12},{"$f":"TABELA!U17","v":0.42857142857142855}]
[null,{"$f":"TABELA!I18","v":13},{"$f":"TABELA!J18","v":"Goiás"},{"$f":"TABELA!K18","v":9},{"$f":"TABELA!L18","v":7},{"$f":"TABELA!M18","v":2},{"$f":"TABELA!N18","v":3},{"$f":"TABELA!O18","v":2},{"$f":"TABELA!P18","v":4},{"$f":"TABELA!Q18","v":3},{"$f":"TABELA!R18","v":1},null,{"$f":"TABELA!T18","v":12},{"$f":"TABELA!U18","v":0.42857142857142855}]
[null,{"$f":"TABELA!I19","v":14},{"$f":"TABELA!J19","v":"Internacional"},{"$f":"TABELA!K19","v":9},{"$f":"TABELA!L19","v":7},{"$f":"TABELA!M19","v":2},{"$f":"TABELA!N19","v":3},{"$f":"TABELA!O19","v":2},{"$f":"TABELA!P19","v":6},{"$f":"TABELA!Q19","v":7},{"$f":"TABELA!R19","v":-1},null,{"$f":"TABELA!T19","v":12},{"$f":"TABELA!U19","v":0.42857142857142855}]
[null,{"$f":"TABELA!I20","v":15},{"$f":"TABELA!J20","v":"Figueirense"},{"$f":"TABELA!K20","v":8},{"$f":"TABELA!L20","v":7},{"$f":"TABELA!M20","v":2},{"$f":"TABELA!N20","v":2},{"$f":"TABELA!O20","v":3},{"$f":"TABELA!P20","v":6},{"$f":"TABELA!Q20","v":9},{"$f":"TABELA!R20","v":-3},null,{"$f":"TABELA!T20","v":13},{"$f":"TABELA!U20","v":0.38095238095238093}]
[null,{"$f":"TABELA!I21","v":16},{"$f":"TABELA!J21","v":"Flamengo"},{"$f":"TABELA!K21","v":7},{"$f":"TABELA!L21","v":7},{"$f":"TABELA!M21","v":2},{"$f":"TABELA!N21","v":1},{"$f":"TABELA!O21","v":4},{"$f":"TABELA!P21","v":8},{"$f":"TABELA!Q21","v":10},{"$f":"TABELA!R21","v":-2},null,{"$f":"TABELA!T21","v":14},{"$f":"TABELA!U21","v":0.33333333333333331}]
[null,{"$f":"TABELA!I22","v":17},{"$f":"TABELA!J22","v":"Santos"},{"$f":"TABELA!K22","v":7},{"$f":"TABELA!L22","v":7},{"$f":"TABELA!M22","v":1},{"$f":"TABELA!N22","v":4},{"$f":"TABELA!O22","v":2},{"$f":"TABELA!P22","v":10},{"$f":"TABELA!Q22","v":11},{"$f":"TABELA!R22","v":-1},null,{"$f":"TABELA!T22","v":14},{"$f":"TABELA!U22","v":0.33333333333333331}]
[null,{"$f":"TABELA!I23","v":18},{"$f":"TABELA!J23","v":"Coritiba"},{"$f":"TABELA!K23","v":3},{"$f":"TABELA!L23","v":7},{"$f":"TABELA!M23","v":1},{"$f":"TABELA!N23","v":0},{"$f":"TABELA!O23","v":6},{"$f":"TABELA!P23","v":4},{"$f":"TABELA!Q23","v":10},{"$f":"TABELA!R23","v":-6},null,{"$f":"TABELA!T23","v":18},{"$f":"TABELA!U23","v":0.14285714285714285}]
[null,{"$f":"TABELA!I24","v":19},{"$f":"TABELA!J24","v":"Vasco"},{"$f":"TABELA!K24","v":3},{"$f":"TABELA!L24","v":7},{"$f":"TABELA!M24","v":0},{"$f":"TABELA!N24","v":3},{"$f":"TABELA!O24","v":4},{"$f":"TABELA!P24","v":2},{"$f":"TABELA!Q24","v":12},{"$f":"TABELA!R24","v":-10},null,{"$f":"TABELA!T24","v":18},{"$f":"TABELA!U24","v":0.14285714285714285}]
[null,{"$f":"TABELA!I25","v":20},{"$f":"TABELA!J25","v":"Joinville"},{"$f":"TABELA!K25","v":1},{"$f":"TABELA!L25","v":7},{"$f":"TABELA!M25","v":0},{"$f":"TABELA!N25","v":1},{"$f":"TABELA!O25","v":6},{"$f":"TABELA!P25","v":2},{"$f":"TABELA!Q25","v":11},{"$f":"TABELA!R25","v":-9},null,{"$f":"TABELA!T25","v":20},{"$f":"TABELA!U25","v":4.7619047619047616E-2}]
[null,{"$f":"TABELA!I26","v":0}]
[null,{"$f":"TABELA!I27","v":0}]
[null,{"$f":"TABELA!I28","v":0}]
[null,{"$f":"TABELA!I29","v":0}]

{"sheet":"MAIS PLANILHAS DE EXCEL","index":2,"n_rows":25,"n_cols":4,"rows_kept":25,"cut":false,"hidden":false,"merged":[[22,1,22,3],[10,3,12,3],[10,1,12,1],[14,1,16,1],[14,3,16,3],[18,1,20,1],[18,3,20,3],[6,1,8,1],[6,3,8,3],[0,1,1,1],[0,2,1,2],[0,3,1,3],[2,1,4,1],[2,3,4,3]]}
[null,"Veja Outras Planilhas de Excel no guia de compra",null,"www.guiadecompra.com"]
[]
[null,"Planilha de Gastos Doméstico",null,"Planilha de cadastro de Clientes"]
[]
[]
[]
[null,"Planilha de Fluxo de Caixa",null,"Planilhas de Orçamento Familiar"]
[]
[]
[]
[null,"Planilha Para Controle de Estoque",null,"Planilha Custo de Fabricação de Produtos"]
[]
[]
[]
[null,"Planilha Para Cotação de Preços",null,"Planilha de Custo de Construção e Reformas"]
[]
[]
[]
[null,"Baixar Mais Planilhas de Excel",null,"Tabela da Copa do Mundo"]
[]
[]
[]
[null,"Baixe outras planilha de Excel. Otimize seu dia-a-dia fazendo o controle de suas operações"]
[null,"www.tudoexcel.com.br"]
[null,{"$f":"B24","v":"www.tudoexcel.com.br"}]